Cogmind - Beta 9.5 @@@ ROGUE MODE // 2020.04.03 @ 01:31:36 // Winter2019/RPGLIKE Player: IAMCRAIG Result: Destroyed by G-73 Enforcer with Phase Gun Performance ------------- Evolutions (7) 3500 Regions Visited (28) 5600 Robots Destroyed (613) 3065 Value Destroyed (24510) 24510 Prototype IDs (98) 1960 Alien Tech Used (4) 800 Bonus (26439) 26439 TOTAL SCORE: 65874 Bonus ------- Triggered Max Security 1000 High Alert Combat Kills 4045 Follower Combat Kills 2838 Entered Garrisons 600 Used RIF Installer 1500 Network Hubs Disabled 800 Aligned with FarCom 300 Triggered Deep Caves Wall 1000 Exposed GOLEM Chamber 10500 MAIN.C Attacked Warlord 500 Warlord Defense Kill 126 Met R17 at Cetus 500 Used Core Reset Matrix 3000 Scanned by Researcher 500 Friendly Fire -770 Cogmind --------- Core Integrity 0/1050 Matter 230/300 Energy 13/750 System Corruption 1% Temperature Cool (4) Movement Flying (52) Location -3/Quarantine Parts ------- > --- POWER (3) -------- Quantum Reactor Quantum Reactor > --- PROPULSION (6) --- Assembled Alloy Leg Flying Fortress v7 Q-thruster > --- UTILITY (11) ----- Assembled Suspension Frame Assembled Combat Suite Advanced Target Analyzer Advanced Armor Integrity Analyzer Assembled Alloy Armor Advanced Force Field GOLEM Unit > --- WEAPON (5) ------- Assembled Focal Cannon Assembled Focal Cannon Plasma Lance > --- INVENTORY (5) ---- Light Quantum Reactor Advanced Weapon Cycler Nanoactuators Core Stripper Peak State ------------ > --- POWER ------------ Quantum Reactor Quantum Reactor Light Quantum Reactor > --- PROPULSION ------- Flying Fortress v7 Q-thruster Q-thruster > --- UTILITY ---------- Assembled Suspension Frame Assembled Combat Suite Advanced Target Analyzer Advanced Armor Integrity Analyzer Advanced Weapon Cycler Nanoactuators Centrium Light Armor Plating Assembled Alloy Armor Advanced Force Field GOLEM Unit > --- WEAPON ----------- Assembled Focal Cannon Assembled Focal Cannon Core Stripper Plasma Lance > --- INVENTORY -------- Protomatter GOLEM Unit Core Reset Matrix Stasis Generator [Rating: 222] Favorites ----------- Power Assembled Flux Generator Engine Light Angular Momentum Engine Power Core Neutrino Core Reactor Assembled Flux Generator Propulsion Flying Fortress v7 Treads Light Treads Leg Aluminum Leg Wheel Wheel Hover Unit Zionite Glidesys I Flight Unit Flying Fortress v7 Utility Advanced Target Analyzer Device GOLEM Unit Storage Assembled Biocell Array Processor Advanced Target Analyzer Hackware System Shield Protection Assembled Alloy Armor Artifact Stasis Generator Weapon Lance Energy Gun Advanced Variable Charge Gun Energy Cannon Advanced Beam Cannon Ballistic Gun Assault Rifle Ballistic Cannon Gauss Cannon Launcher Smartbomb Launcher Special Weapon Remote Datajack Impact Weapon Powered Hammer Slashing Weapon Greatsword Piercing Weapon Lance Special Melee Weapon Improved Datajack Build | -11 -10 -10 -10 -9 -8 -8 -8 -8 -7 -7 -7 -7 -7 -6 -6 -6 -5 -5 -5 -5 -4 -4 -4 -4 -4 -4 -3 -3 ------- Run | Scr Mat Min Exi Min Mat Gar Mat Gar Fac Low Low Zio Dee Pro Fac Gar Fac Upp Upp War Pro Fac Ext Cet Arc Hub Res Qua Slots Evolved 21 | 4 . 2 . 1 4 2 1 . 2 . . . . . . 1 1 . . . 1 1 1 . . . . . Power 2 | . . . . . 1 . . . . . . . . . . . . . . . 1 . . . . . . . Propulsion 5 | 2 . 1 . . . . . . 1 . . . . . . . . . . . . . 1 . . . . . Utility 10 | 1 . 1 . . 2 1 1 . 1 . . . . . . 1 1 . . . . 1 . . . . . . Weapon 4 | 1 . . . 1 1 1 . . . . . . . . . . . . . . . . . . . . . . Parts Attached 420 | 6 7 3 2 8 28 8 9 1 37 1 6 35 76 2 22 6 17 11 2 3 12 28 23 10 8 10 24 15 Power 50 | 1 . . . 3 7 . 1 . 2 . 4 1 6 . . . . . . . 5 6 7 2 . . 4 1 Engine 16 | 1 . . . 3 7 . 1 . 1 . 1 . . . . . . . . . 2 . . . . . . . Core 15 | . . . . . . . . . 1 . 3 1 2 . . . . . . . 3 1 4 . . . . . Reactor 19 | . . . . . . . . . . . . . 4 . . . . . . . . 5 3 2 . . 4 1 Propulsion 30 | 3 2 1 1 . . . . . 2 . . 1 6 . 1 . 1 . 2 . . 3 2 . . 1 4 . Treads 4 | 2 2 . . . . . . . . . . . . . . . . . . . . . . . . . . . Leg 2 | . . 1 . . . . . . . . . . 1 . . . . . . . . . . . . . . . Wheel 2 | 1 . . . . . . . . . . . . . . . . . . 1 . . . . . . . . . Hover 1 | . . . . . . . . . . . . . 1 . . . . . . . . . . . . . . . Flight 21 | . . . 1 . . . . . 2 . . 1 4 . 1 . 1 . 1 . . 3 2 . . 1 4 . Utility 216 | . 4 1 1 1 11 6 5 1 19 1 2 17 46 1 8 6 8 10 . 3 5 13 8 2 7 9 10 11 Device 107 | . 1 1 . . 2 3 2 . 7 1 2 7 18 . 4 1 5 8 . 2 3 11 6 . 4 5 7 7 Storage 3 | . . . . . . . . . . . . . 1 . 1 . 1 . . . . . . . . . . . Processor 17 | . 2 . . . 1 1 . . 2 . . 4 . . 1 . . . . . . 1 . . 1 1 1 2 Hackware 17 | . . . . . 2 2 1 1 4 . . . . . 1 2 1 . . . . 1 . . 1 . 1 . Protection 71 | . 1 . 1 1 6 . 2 . 6 . . 6 27 1 1 3 1 2 . 1 2 . 2 2 1 3 1 1 Artifact 1 | . . . . . . . . . . . . . . . . . . . . . . . . . . . . 1 Weapon 124 | 2 1 1 . 4 10 2 3 . 14 . . 16 18 1 13 . 8 1 . . 2 6 6 6 1 . 6 3 Energy Gun 15 | 1 . 1 . . 1 . 1 . 2 . . . 2 . 2 . . . . . . . . 2 1 . 2 . Energy Cannon 7 | . . . . . . . 1 . 2 . . . . . . . 1 . . . . 1 . 1 . . 1 . Ballistic Gun 7 | 1 1 . . . 4 . . . . . . . . . . . . . . . . . . 1 . . . . Ballistic Cannon 8 | . . . . 2 2 . 1 . . . . . . . . . 1 . . . 1 1 . . . . . . Launcher 16 | . . . . 1 1 . . . 2 . . . 7 . 2 . 2 . . . . . . . . . 1 . Special Weapon 14 | . . . . . . . . . 3 . . . . 1 2 . 2 1 . . 1 3 1 . . . . . Impact Weapon 9 | . . . . . . . . . . . . 3 3 . 1 . . . . . . . . . . . . 2 Slashing Weapon 25 | . . . . 1 2 1 . . 2 . . 9 . . 4 . . . . . . 1 5 . . . . . Piercing Weapon 22 | . . . . . . . . . 3 . . 4 6 . 2 . 2 . . . . . . 2 . . 2 1 Special Melee Weapon 1 | . . . . . . 1 . . . . . . . . . . . . . . . . . . . . . . Unidentified Prototypes 48 | . . . . . 3 . 2 . 3 . . 3 10 . 3 . 4 1 . . . 3 . 3 . 1 4 8 Parts Lost 8 | . . . . . . . . . . . . 2 5 . 1 . . . . . . . . . . . . . Power . | . . . . . . . . . . . . . . . . . . . . . . . . . . . . . Propulsion . | . . . . . . . . . . . . . . . . . . . . . . . . . . . . . Utility 7 | . . . . . . . . . . . . 2 5 . . . . . . . . . . . . . . . Weapon 1 | . . . . . . . . . . . . . . . 1 . . . . . . . . . . . . . Highest Loss Streak 2 | . . . . . . . . . . . . 1 2 . 1 . . . . . . . . . . . . . Average Slot Usage (%) 74 | . 94 99 85 64 70 73 76 76 77 80 80 79 72 70 69 70 71 71 72 72 72 72 75 76 75 75 76 78 Engine 4 | . 12 10 10 9 13 11 11 11 9 10 8 . . . . . . . . . 1 . . . . . . . Reactor 3 | . . . . . . . . . . . . . 4 5 5 4 4 4 4 4 4 5 5 8 8 8 8 11 Flight 8 | . . . 4 9 6 5 5 5 5 10 10 10 9 10 10 9 9 9 9 9 8 8 9 12 12 12 11 11 Device 13 | . 1 7 7 . 2 5 4 5 4 10 10 14 15 20 18 16 11 16 18 18 18 21 22 20 22 22 25 23 Processor 7 | . 8 10 10 3 . 2 5 5 8 5 5 10 10 10 10 9 9 9 9 9 8 7 8 8 4 4 4 8 Hackware 7 | . . . . . 7 11 14 15 17 15 15 4 . . 2 10 12 5 4 4 4 5 4 4 1 4 4 3 Protection 8 | . 8 10 12 24 19 11 11 11 8 10 10 10 7 5 4 . 3 7 9 8 6 4 5 8 11 9 4 4 Energy Cannon 1 | . . . . . . . . 5 3 . . . . . . . . . . . . . 2 . . . 3 7 Special Weapon 3 | . . . . . . . . . 4 5 5 1 . 2 4 4 4 8 9 9 7 7 7 8 8 8 4 1 Slashing Weapon 4 | . . . . 4 7 11 11 11 6 5 5 7 5 5 6 . . . . . . . 3 2 . . . . Piercing Weapon 5 | . . . . . . . . . 4 10 10 9 8 5 6 9 8 9 9 9 8 6 4 3 4 4 3 5 Naked Turns . | . . . . . . . . . . . . . . . . . . . . . . . . . . . . . Heaviest Build 124 | 9 11 12 12 24 46 46 46 43 58 58 67 70 68 65 84 77 82 79 79 79 85 106 111 116 111 111 124 119 Greatest Support 127 | 40 40 40 72 72 72 72 72 72 77 77 77 77 87 77 79 84 86 96 86 86 86 97 112 112 127 117 119 119 Greatest Overweight (x) 2 | . 1 1 1 . . . . . . . . . 2 . 1 . . . 1 . . 1 . 1 . 2 1 . Average Overweight (x) . | . . . . . . . . . . . . . . . . . . . . . . . . . . . . . Largest Inventory Capacity 5 | . 1 1 1 2 2 3 3 4 4 4 4 4 5 5 5 5 5 5 5 5 5 5 5 5 5 5 5 5 Average Capacity 4 | . . 1 1 1 2 2 3 3 4 4 4 4 4 5 5 5 5 5 5 5 5 5 5 5 5 5 5 5 Most Carried 5 | . 1 1 1 2 2 3 3 4 4 4 4 4 5 5 5 5 5 5 5 5 5 5 5 5 5 5 5 5 Average Carried 4 | . . 1 . 1 1 2 2 3 3 3 4 3 4 5 4 4 4 4 5 5 4 4 4 4 4 4 4 4 Final Capacity 5 | . 1 1 1 2 2 3 3 4 4 4 4 4 5 5 5 5 5 5 5 5 5 5 5 5 5 5 5 5 Final Carried 5 | . 1 1 1 2 2 3 3 4 4 4 4 4 5 5 5 5 5 5 5 5 5 5 5 5 5 5 5 5 Class Distribution -------------------- 56% | Hacker-Mutant 8% | Hacker-Gladiator 6% | Bothacker-Gladiator 6% | Gladiator 5% | Bothacker-Mutant 4% | Mutant 4% | Hacker-Tank 3% | Hacker-Gunner Dominant Class ---------------- Mutant | -10/Materials Mutant | -10/Mines Mutant | -10/Exiles Gladiator | -9/Mines Gladiator | -8/Materials Hacker-Gladiator | -8/Garrison Bothacker-Gladiator | -8/Materials Bothacker-Gladiator | -8/Garrison Hacker-Mutant | -7/Factory Hacker-Mutant | -7/Lower Caves Hacker-Mutant | -7/Lower Caves Hacker-Mutant | -7/Zion Hacker-Mutant | -7/Deep Caves Hacker-Mutant | -6/Proximity Caves Hacker-Mutant | -6/Factory Hacker-Mutant | -6/Garrison Hacker-Mutant | -5/Factory Hacker-Mutant | -5/Upper Caves Hacker-Mutant | -5/Upper Caves Hacker-Mutant | -5/Warlord Hacker-Mutant | -4/Proximity Caves Hacker-Mutant | -4/Factory Hacker-Mutant | -4/Extension Hacker-Tank | -4/Cetus Generator-Mutant | -4/Archives Hacker-Tank | -4/Hub_04(d) Hacker-Gunner | -3/Research Hacker-Mutant | -3/Quarantine Resources | -11 -10 -10 -10 -9 -8 -8 -8 -8 -7 -7 -7 -7 -7 -6 -6 -6 -5 -5 -5 -5 -4 -4 -4 -4 -4 -4 -3 -3 ----------- Run | Scr Mat Min Exi Min Mat Gar Mat Gar Fac Low Low Zio Dee Pro Fac Gar Fac Upp Upp War Pro Fac Ext Cet Arc Hub Res Qua Matter Collected 7656 | 278 76 129 66 330 456 128 102 10 581 74 60 360 1154 148 272 214 394 183 260 395 306 290 519 213 79 184 275 120 Remotely 20 | . . . . . . . . . . . . . . . . . . . . . . . 20 . . . . . Salvage Created 26048 | 99 118 142 . 248 1067 1244 863 708 858 632 612 1800 3425 283 753 769 1613 813 954 681 1099 776 2129 777 194 1876 1175 340 Parts 1326 | 2 19 10 . 5 80 69 45 43 74 21 30 132 75 36 43 23 91 22 48 65 45 54 86 38 16 41 88 25 Haulers Intercepted 19 | . . . . . 5 . 2 . . . . . . . 2 . 5 . . . . 1 2 . . 1 1 . Recyclers Shooed . | . . . . . . . . . . . . . . . . . . . . . . . . . . . . . Parts Field Recycled . | . . . . . . . . . . . . . . . . . . . . . . . . . . . . . Retrieved Matter . | . . . . . . . . . . . . . . . . . . . . . . . . . . . . . Parts Self-Destructed 222 | . . . . . . . . . . 27 46 . . 29 . . . 26 53 . 41 . . . . . . . Prevented 1 | . . . . . . . . . . . . . . . . . . . 1 . . . . . . . . . Kills | -11 -10 -10 -10 -9 -8 -8 -8 -8 -7 -7 -7 -7 -7 -6 -6 -6 -5 -5 -5 -5 -4 -4 -4 -4 -4 -4 -3 -3 ------- Run | Scr Mat Min Exi Min Mat Gar Mat Gar Fac Low Low Zio Dee Pro Fac Gar Fac Upp Upp War Pro Fac Ext Cet Arc Hub Res Qua Combat Hostiles Destroyed 472 | . 8 4 . 19 30 23 13 17 29 12 13 12 83 16 7 13 26 5 20 14 15 15 25 10 3 14 19 7 Melee 300 | . . . . 2 16 20 13 17 28 12 13 12 43 9 6 13 19 4 2 1 2 15 21 7 3 1 17 4 Guns 12 | . 8 4 . . . . . . . . . . . . . . . . . . . . . . . . . . Cannons 40 | . . . . 15 8 3 . . 1 . . . 1 . . . 2 . . . 4 . 2 . . . 2 2 AOE 68 | . . . . 2 6 . . . . . . . 32 7 . . 5 . 5 . . . . . . 11 . . Classes Destroyed 34 | 2 3 . . 3 3 3 . . 1 . . 5 3 . . . . 1 2 2 . . 1 . . 2 1 2 Worker 8 | . . . . . . . . . . . . . . . . . . . . . . . . . . 8 . . Builder 7 | . . . . 1 2 . . . . . . . . . . . . . . . . . . . . 2 2 . Tunneler 1 | 1 . . . . . . . . . . . . . . . . . . . . . . . . . . . . Hauler 19 | . . . . . 5 . 2 . . . . . . . 2 . 5 . . . . 1 2 . . 1 1 . Recycler 3 | 1 . . . . . . . . . . . . . . . . . . . . . . . . . 2 . . Carrier 1 | . . . . . . . . . . . . . . . . . . . 1 . . . . . . . . . Minesweeper 2 | . . . . . . . . . . . . . . . . . . . 2 . . . . . . . . . Mechanic 1 | . . . . . . . . . . . . . . . . . . . . . . . 1 . . . . . Operator 11 | . . . . . 1 . . . 1 . . . . . 2 . . . . . . 1 . . 2 3 1 . Watcher 16 | . 1 . . . 1 . 2 . . . . . . . 3 . 4 . . . . . 2 2 . . 1 . Swarmer 105 | . 3 . . 2 16 3 2 7 12 5 3 . . 13 2 3 11 . 8 . 9 4 2 . . . . . Saboteur 3 | . . . . . . . . . . . . . . . . . . . . . . . . . . . 1 2 Grunt 86 | . 5 4 . . 4 8 3 5 7 3 6 . . . 1 6 4 . 5 . 3 1 11 . . 10 . . Brawler 14 | . . . . . . 1 . 1 . 2 . . . . . 1 . . 3 . 1 . 5 . . . . . Duelist 9 | . . . . . . 1 1 . 1 1 2 . . . . 2 . . 1 . . . . . . . . . Protector 2 | . . . . . . . . . . . . . . . . . . . . . . . . . . 2 . . Researcher 2 | . . . . . . . . . . . . . . . . . . . . . . . . . . . . 2 Sentry 55 | . . . . . 10 7 7 2 2 1 1 . . 1 2 . 5 . 1 . 1 3 1 . 3 2 5 1 Demolisher 4 | . . . . 1 . . . . . . . . . . . . . . . 1 . . 2 . . . . . Specialist 2 | . . . . . . . . . . . . . . . . . . 2 . . . . . . . . . . Hunter 27 | . . . . . . 3 . 2 1 . 1 . . . . . 6 2 1 . . . 1 3 . . 5 2 Programmer 26 | . . . . . . . . . 6 . . . . 1 2 . . . . . . 7 2 . . . 8 . Behemoth 6 | . . . . . . . . . . . . . . 1 . 1 . 1 1 . 1 . 1 . . . . . Cetus Guard 7 | . . . . . . . . . . . . . . . . . . . . . . . . 7 . . . . Striker 2 | . . . . . . . . . . . . . . . . . . . . . . . . . . . . 2 Zionite 49 | . . . . . . . . . . . . 49 . . . . . . . . . . . . . . . . Z-Technician 5 | . . . . . . . . . . . . . 5 . . . . . . . . . . . . . . . Z-Light 9 | . . . . . . . . . . . . . 9 . . . . . . . . . . . . . . . Tinkerer 9 | . . . . . . . . . . . . 8 . . . . . . . 1 . . . . . . . . Demented 5 | . . . . . . . . . . . . . . . . . . . . 5 . . . . . . . . Assembler 2 | . . . . . . . . . . . . . 2 . . . . . . . . . . . . . . . Assembled 55 | . . . . 16 . . . . . . . . 39 . . . . . . . . . . . . . . . Golem 35 | . . . . . . . . . . . . . 35 . . . . . . . . . . . . . . . Thug 4 | . . . . . . . . . . . . 1 . . . . . . . 3 . . . . . . . . Savage 1 | . . . . . . . . . . . . . . . . . . . . 1 . . . . . . . . Butcher 1 | . . . . . . . . . . . . 1 . . . . . . . . . . . . . . . . Bouncer 2 | . . . . . . . . . . . . . . . . . . . . 2 . . . . . . . . Guerrilla 1 | . . . . . . . . . . . . 1 . . . . . . . . . . . . . . . . Marauder 4 | . . . . . . . . . . . . 2 . . . . . . . 2 . . . . . . . . Fireman 1 | . . . . . . . . . . . . 1 . . . . . . . . . . . . . . . . Mutant 7 | . . . . . . . . . . . . 5 . . . . . . . 2 . . . . . . . . Commander 2 | . . . . . . . . . . . . . . . . . . . . 2 . . . . . . . . Hydra 1 | . . . . . . . . . . . . . . . . . . . . 1 . . . . . . . . Best Kill Streak 33 | 2 3 2 . 7 9 11 5 5 4 6 6 17 33 4 3 3 7 3 7 2 4 5 6 4 3 17 5 6 Combat Bots Only 33 | . 3 2 . 7 7 11 5 5 4 6 6 2 33 4 2 3 6 3 7 2 4 5 6 4 3 8 3 3 Max Kills in Single Turn 12 | 1 1 1 . 2 3 1 1 1 1 1 2 2 12 2 1 1 3 1 5 1 1 2 1 1 1 11 1 1 Gunslinging . | . . . . . . . . . . . . . . . . . . . . . . . . . . . . . Exploded 12 | . . . . 1 2 . . . . . . . 12 2 . . 3 . 4 . . . . . . 8 . . Melee 2 | . . . . 1 1 1 1 1 1 1 2 1 1 2 1 1 1 1 1 1 1 2 1 1 1 1 1 1 Uniques/NPCs Destroyed 1 | . . . . . . . . . . . . 1 . . . . . . . . . . . . . . . . Imprinter (-7/Zion) Combat | -11 -10 -10 -10 -9 -8 -8 -8 -8 -7 -7 -7 -7 -7 -6 -6 -6 -5 -5 -5 -5 -4 -4 -4 -4 -4 -4 -3 -3 -------- Run | Scr Mat Min Exi Min Mat Gar Mat Gar Fac Low Low Zio Dee Pro Fac Gar Fac Upp Upp War Pro Fac Ext Cet Arc Hub Res Qua Damage Taken 22268 | . 189 314 . 361 829 877 410 355 1499 336 426 1704 2722 386 160 1136 1084 278 934 1586 595 1144 997 563 88 141 1149 2005 Core 14852 | . 137 226 . 229 491 605 278 219 886 203 270 1063 1614 266 111 873 741 199 628 1048 408 858 634 389 44 101 853 1478 Absorbed by Shields 8640 | . . . . . . . . . 12 132 162 623 64 . 60 326 209 100 339 517 220 980 940 571 93 145 1079 2068 Redirected to Core 12611 | . 127 193 . 160 372 388 202 212 795 179 215 967 1215 237 80 750 664 171 577 909 343 727 573 323 44 101 802 1285 Core Remaining (%) 91 | 100 . . . 82 . . . 100 . . . . . 100 . 100 . . . . 68 . . . . 90 . . Volleys Fired 529 | 6 25 16 . 42 26 8 2 2 55 4 . . 31 7 11 15 33 6 38 73 31 5 44 20 7 3 9 10 Largest 3 | 2 2 2 . 1 2 1 1 1 1 1 . . 1 1 1 1 1 1 1 1 1 1 1 2 2 2 3 3 Hottest 240 | 70 70 85 . 48 73 48 48 68 68 30 . . 39 39 30 46 60 40 40 40 61 40 40 240 80 80 190 50 Shots Fired 609 | 12 50 32 . 42 28 8 2 2 55 4 . . 31 7 11 15 33 6 38 73 31 6 44 28 8 4 22 17 Gun 115 | 12 50 32 . . 2 . . . . . . . . . . . . . . . . . . 8 1 2 8 . Cannon 120 | . . . . 40 20 8 2 2 4 . . . . . . . 3 . . . 8 2 8 . . . 7 16 Launcher 54 | . . . . 2 6 . . . . . . . 31 7 . 6 2 . . . . . . . . . . . Special 320 | . . . . . . . . . 51 4 . . . . 11 9 28 6 38 73 23 4 36 20 7 2 7 1 Kinetic 130 | 6 25 16 . 40 22 8 2 . . . . . . . . . 3 . . . 8 . . . . . . . Thermal 105 | 6 25 16 . . . . . 2 4 . . . . . . . . . . . . 2 8 8 1 2 15 16 Explosive 46 | . . . . . . . . . . . . . 31 7 . 6 2 . . . . . . . . . . . Electromagnetic 8 | . . . . 2 6 . . . . . . . . . . . . . . . . . . . . . . . Robot Hit Streak 30 | 4 6 9 . 4 3 3 5 . 11 7 . . 8 2 3 7 10 5 9 8 5 5 30 21 27 2 12 12 Robot Miss Streak 6 | 2 2 2 . 6 2 4 . 1 2 . . . 2 2 1 1 1 2 3 2 4 2 1 1 1 2 4 1 Penetration Max 1 | . . . . 1 . . . . . . . . . . . . . . . . 1 . . . . . . . Secondary Targets 3 | . 1 2 . . . . . . . . . . . . . . . . . . . . . . . . . . Max Gunslinging Chain 1 | . 1 1 . . . . . . . . . . . . . . . . . . . . . . . . . . Shots Hit Robots 1565 | 8 31 23 . 19 55 66 45 37 118 33 29 176 272 20 35 48 91 23 34 56 25 52 103 43 12 11 74 26 Core Hits 847 | 3 15 10 . 21 39 29 18 19 34 17 15 81 217 22 14 24 41 9 13 1 7 23 40 16 5 56 44 14 Critical Hits 125 | . 1 1 . 4 2 3 2 4 3 2 1 19 23 . 1 6 8 3 . 1 5 3 9 7 . 1 12 4 Critical Kills 75 | . . . . 4 1 1 2 3 1 1 1 11 20 . 1 2 6 1 . . 4 2 5 3 . . 6 . Critical Parts Destroyed 43 | . 1 1 . . 1 2 . . 2 1 . 7 3 . . 2 2 2 . 1 1 1 3 4 . . 6 3 Melee Attacks 3278 | . . . . 10 241 222 68 225 341 47 97 232 336 164 81 324 193 36 10 8 9 150 101 19 5 84 209 66 Kinetic 3 | . . . . . . . . . . . . . . . . . . . . . . . . . . . . 3 Impact 105 | . . . . . . . . . . . . 3 90 12 . . . . . . . . . . . . . . Slashing 1112 | . . . . 10 241 214 61 219 124 7 15 71 85 13 6 . . . . . . 21 22 3 . . . . Piercing 2017 | . . . . . . . . . 197 40 82 158 161 139 75 324 193 36 10 8 9 129 79 16 5 84 209 63 Sneak Attacks 82 | . . . . . 6 7 12 1 21 . . 9 5 . 2 . 8 . . . . 2 3 . 1 . 3 2 Combat Hostiles 13 | . . . . . . 2 5 1 1 . . . . . . . 3 . . . . . . . 1 . . . Follow-up Attacks 190 | . . . . . 1 6 6 2 5 6 7 52 69 1 2 3 5 4 2 . 1 5 9 2 . . . 2 Damage Inflicted 74576 | 117 394 256 . 777 3491 3643 2583 2123 2137 1280 1079 7736 17035 1983 1465 2274 4397 1268 1194 199 481 2934 3536 1175 405 5622 3551 1441 Guns 1205 | 117 388 256 . . . . . . . . . . . . . . . . . . . . . 216 24 24 180 . Cannons 2403 | . . . . 584 250 86 54 . 22 . . . . . . . 185 . . . 99 38 293 . . . 242 550 Explosions 11129 | . . . . 80 301 . . . . . . . 2660 1107 . 456 598 . 815 . . . . . . 5112 . . Melee 59833 | . . . . 113 2940 3557 2529 2123 2115 1280 1079 7736 14375 876 1465 1818 3614 1268 379 199 382 2896 3243 959 381 486 3129 891 Ramming 6 | . 6 . . . . . . . . . . . . . . . . . . . . . . . . . . . Kinetic 1732 | 53 164 119 . 584 250 86 54 . . . . . . . . . 185 . . . 99 . . . . . . 138 Thermal 2268 | 64 224 137 . 26 . . . . 22 . . . . . . . . . . . . 38 293 216 24 252 422 550 Explosive 4821 | . . . . . . . . . . . . . 2660 1107 . 456 598 . . . . . . . . . . . Electromagnetic 6054 | . . . . 54 301 . . . . . . . . . . . . . 815 . . . . . . 4884 . . Impact 2963 | . . . . . . . . . . . . . 2963 . . . . . . . . . . . . . . . Slashing 22347 | . . . . 113 2940 3557 2529 2123 562 213 255 2786 5214 62 . . . . . . . 1155 749 89 . . . . Piercing 34385 | . . . . . . . . . 1553 1067 824 4950 6198 814 1465 1818 3614 1268 379 199 382 1741 2494 870 381 486 3129 753 Highest Corruption 8 | . 2 2 2 2 . . . . 3 . 1 1 . . . 1 4 5 5 5 . 8 7 6 6 2 1 5 Average Corruption 2 | . 2 2 2 2 . . . . 1 . 1 1 . . . 1 2 4 5 5 . 5 3 6 3 1 1 1 Corruption Purged 21 | . . . . . . . . . 5 . . . . . . . . . . . . 1 7 . 6 2 . . Effects 151 | . 1 2 4 8 . . . . 8 . 2 . . . . 5 4 21 19 1 . 26 14 9 15 4 1 7 Message Errors 33 | . 1 . 1 4 . . . . 1 . . . . . . 2 . 6 3 1 . 4 3 1 6 . . . Matter Fused 28 | . . . . . . . . . . . . . . . . . . 5 7 . . 5 2 2 5 . . 2 Heat Flow Errors 16 | . . . 2 . . . . . . . . . . . . . 2 3 2 . . 1 1 1 2 1 . 1 Energy Discharges 25 | . . . . 1 . . . . 2 . 1 . . . . 1 1 4 3 . . 7 3 1 . 1 . . Parts Rejected 2 | . . . . . . . . . . . . . . . . . . . . . . 1 1 . . . . . Data Loss (minor) 22 | . . 2 1 2 . . . . 4 . . . . . . 1 1 2 2 . . 2 2 1 1 1 . . Data Loss (major) 1 | . . . . . . . . . . . . . . . . . . . . . . . . 1 . . . . Misfires 1 | . . . . . . . . . . . . . . . . . . . . . . 1 . . . . . . Targeting Errors 22 | . . . . 1 . . . . 1 . 1 . . . . 1 . 1 2 . . 5 2 1 1 1 1 4 Weapon Failures 1 | . . . . . . . . . . . . . . . . . . . . . . . . 1 . . . . Overload Shots 1 | . . . . . . . . . . . . . . . . . . . . . . . . 1 . . . . Overflow Damage 5557 | . . . . 6 215 230 219 225 21 227 4 525 1756 206 130 112 432 137 90 . 98 213 168 . . 416 98 29 Projectiles 41 | . . . . 6 11 . . . . . . . . . . . . . . . . . 24 . . . . . Explosions 730 | . . . . . . . . . . . . . 8 152 . 16 116 . 90 . . . . . . 348 . . Melee 4786 | . . . . . 204 230 219 225 21 227 4 525 1748 54 130 96 316 137 . . 98 213 144 . . 68 98 29 Knockbacks 34 | . . . . 4 . . 1 . . . . . 26 . . . 3 . . . . . . . . . . . Impact 24 | . . . . . . . . . . . . . 24 . . . . . . . . . . . . . . . Kinetic 7 | . . . . 3 . . 1 . . . . . . . . . 3 . . . . . . . . . . . Secondary 3 | . . . . 1 . . . . . . . . 2 . . . . . . . . . . . . . . . Self-Inflicted Damage 123 | . . . . . . . . . . . . . 19 43 . . . . . . . . . . . 61 . . Shots 4 | . . . . . . . . . . . . . 1 2 . . . . . . . . . . . 1 . . Rammed 1 | . 1 . . . . . . . . . . . . . . . . . . . . . . . . . . . Targets Rammed 1 | . 1 . . . . . . . . . . . . . . . . . . . . . . . . . . . Kicked . | . . . . . . . . . . . . . . . . . . . . . . . . . . . . . Crushed . | . . . . . . . . . . . . . . . . . . . . . . . . . . . . . Highest Temperature 260 | 27 90 109 179 41 72 . . . 21 3 . . 8 . . . 260 181 244 9 . 124 90 148 83 133 96 207 Average Temperature 38 | 11 29 47 90 14 14 . . . 8 2 . . 4 . . . 76 71 103 9 . 57 35 54 47 56 51 97 Received Heat Transfer 3370 | . 66 177 . 80 198 261 108 90 237 64 112 74 455 48 16 135 78 27 182 151 36 126 152 84 16 24 115 258 Siege Activations . | . . . . . . . . . . . . . . . . . . . . . . . . . . . . . Robots Corrupted 4 | . . . . . . . . . . . . . . . . . . . . . . . . . . 4 . . Combat Hostiles 1 | . . . . . . . . . . . . . . . . . . . . . . . . . . 1 . . Parts Fried 50 | . . . . . 1 . . . . . . . 3 . 2 . 1 . 5 . . . . . . 38 . . Impact Corruptions 24 | . . . . . . . . . . . . . 24 . . . . . . . . . . . . . . . Robots Melted . | . . . . . . . . . . . . . . . . . . . . . . . . . . . . . Combat Hostiles . | . . . . . . . . . . . . . . . . . . . . . . . . . . . . . Parts Melted 9 | . . . . . . . 1 . 3 . . 1 . . . 1 1 . . . . . 1 . 1 . . . Heat Transferred 2683 | 185 666 407 . 50 . . . . 37 . . . . . . . . . . . . 25 150 309 37 237 347 233 Parts Sabotaged 1 | . . . . . . . . . . . . . . . . . . . . . . . . . . . . 1 Parts Stolen . | . . . . . . . . . . . . . . . . . . . . . . . . . . . . . Parts Stripped . | . . . . . . . . . . . . . . . . . . . . . . . . . . . . . Power Chain Reactions 5 | . . . . . 1 . . . . . . . . . . . . . . . . . . . . 4 . . Missiles Intercepted . | . . . . . . . . . . . . . . . . . . . . . . . . . . . . . Alert | -11 -10 -10 -10 -9 -8 -8 -8 -8 -7 -7 -7 -7 -7 -6 -6 -6 -5 -5 -5 -5 -4 -4 -4 -4 -4 -4 -3 -3 ------- Run | Scr Mat Min Exi Min Mat Gar Mat Gar Fac Low Low Zio Dee Pro Fac Gar Fac Upp Upp War Pro Fac Ext Cet Arc Hub Res Qua Peak Influence 2016 | 10 211 152 . 144 546 1383 716 1126 994 . . . . . 572 1076 776 . . . . 635 1694 965 277 1974 1292 2016 Average Influence 491 | 1 120 106 . 49 357 938 439 614 485 . . . . . 134 756 285 . . . . 218 875 539 122 749 648 1849 Maximum Alert Level 5 | . 1 . . . 2 4 3 4 3 . . . . . 2 3 3 . . . . 2 5 3 1 5 4 5 Low Security (%) 25 | 100 82 100 . 100 5 . . . 15 . . . . . 87 . 33 . . . . 66 . . 65 11 . . Level 1 21 | . 17 . . . 59 7 51 29 16 . . . . . . . 51 . . . . 9 9 34 34 . 20 . Level 2 30 | . . . . . 34 12 44 34 55 . . . . . 12 32 13 . . . . 24 38 43 . 54 49 . Level 3 14 | . . . . . . 44 4 31 12 . . . . . . 67 2 . . . . . 18 21 . . 15 . Level 4 6 | . . . . . . 34 . 4 . . . . . . . . . . . . . . 24 . . 30 13 . Level 5 . | . . . . . . . . . . . . . . . . . . . . . . . 8 . . 2 . . High Security . | . . . . . . . . . . . . . . . . . . . . . . . . . . . . . Max Security 1 | . . . . . . . . . . . . . . . . . . . . . . . . . . . . 99 Squads Dispatched 100 | . 1 . . . 5 . . . 14 . 1 . . . 8 . 12 . 1 . . 11 8 . . 6 13 20 Investigation 25 | . 1 . . . 3 . . . 6 . 1 . . . 3 . 2 . . . . 4 2 . . 1 2 . Extermination 16 | . . . . . . . . . 6 . . . . . 2 . 2 . . . . 2 . . . 1 3 . Reinforcement 18 | . . . . . 2 . . . 1 . . . . . 2 . 4 . . . . 4 . . . 1 4 . Assault 38 | . . . . . . . . . 1 . . . . . 1 . 2 . 1 . . 1 6 . . 3 3 20 Garrison 3 | . . . . . . . . . . . . . . . . . 2 . . . . . . . . . 1 . Intercept . | . . . . . . . . . . . . . . . . . . . . . . . . . . . . . Construction Impeded 3 | . . . . . 1 . . . . . . . . . . . . . . . . 1 . . . 1 . . Haulers Reinforced 2 | . . . . . . . . . . . . . . . . . 1 . . . . 1 . . . . . . Stealth | -11 -10 -10 -10 -9 -8 -8 -8 -8 -7 -7 -7 -7 -7 -6 -6 -6 -5 -5 -5 -5 -4 -4 -4 -4 -4 -4 -3 -3 --------- Run | Scr Mat Min Exi Min Mat Gar Mat Gar Fac Low Low Zio Dee Pro Fac Gar Fac Upp Upp War Pro Fac Ext Cet Arc Hub Res Qua Distress Signals 27 | . 1 . . . 3 . 3 . . . . . . . . . 7 . . . . 3 1 2 . 5 1 1 Communications Jammed . | . . . . . . . . . . . . . . . . . . . . . . . . . . . . . Distress Signals . | . . . . . . . . . . . . . . . . . . . . . . . . . . . . . Times Spotted 1037 | . 17 4 . 26 46 27 24 22 52 19 21 67 89 18 17 30 53 6 19 25 17 60 79 19 10 55 96 119 Peak Tracking Total 56 | . 4 2 . 7 6 7 7 4 4 8 8 8 41 4 3 6 6 4 10 11 5 15 18 5 3 18 20 56 Tactical Retreats 93 | . 1 . . 2 7 2 2 1 3 . . 8 5 1 3 5 4 . . . 1 11 . . . 12 18 7 Traps | -11 -10 -10 -10 -9 -8 -8 -8 -8 -7 -7 -7 -7 -7 -6 -6 -6 -5 -5 -5 -5 -4 -4 -4 -4 -4 -4 -3 -3 ------- Run | Scr Mat Min Exi Min Mat Gar Mat Gar Fac Low Low Zio Dee Pro Fac Gar Fac Upp Upp War Pro Fac Ext Cet Arc Hub Res Qua Traps Triggered 46 | . 3 . . . . 2 . 12 1 . . . . . . 10 1 . 12 . . 2 2 . . . 1 . Indirectly 12 | . . . . . . . . . . . . . . . . . . . 12 . . . . . . . . . Trap Hack Attempts 62 | . . . . . . 47 1 . 14 . . . . . . . . . . . . . . . . . . . Triggered . | . . . . . . . . . . . . . . . . . . . . . . . . . . . . . Disarmed 6 | . . . . . . . . . . . . . . . . . . . . . . . 6 . . . . . Reprogrammed 50 | . . . . . 4 4 . . 14 . . . . . 6 . 5 . . . . 4 . . . 13 . . Reused 20 | . . . . . 2 . . . 5 . . . . . 5 . 1 . 2 . . . . . . 5 . . Traps Extracted . | . . . . . . . . . . . . . . . . . . . . . . . . . . . . . Installed 17 | . . . . . . . . . . . 1 . . . . . . . 16 . . . . . . . . . Triggered 30 | . . . . . 3 . . . 5 . 1 . . . 5 1 1 . 4 . 5 . . . . 5 . . Machines | -11 -10 -10 -10 -9 -8 -8 -8 -8 -7 -7 -7 -7 -7 -6 -6 -6 -5 -5 -5 -5 -4 -4 -4 -4 -4 -4 -3 -3 ---------- Run | Scr Mat Min Exi Min Mat Gar Mat Gar Fac Low Low Zio Dee Pro Fac Gar Fac Upp Upp War Pro Fac Ext Cet Arc Hub Res Qua Machines Disabled 88 | . . 1 . 3 6 4 . 4 1 1 3 1 1 . 1 4 2 1 . . . 1 5 . . 42 . 7 Max in Single Turn 22 | . . 1 . 1 1 1 . 1 1 1 1 1 1 . 1 1 1 1 . . . . 1 . . 22 . 1 Garrison Access 4 | . . . . . . . . . . . . . . . . . 1 . . . . 1 . . . 2 . . Garrison Relay 12 | . . . . . . 4 . 4 . . . . . . . 4 . . . . . . . . . . . . Network Hub 4 | . . . . . . . . . . . . . . . . . . . . . . . . . . 4 . . Machines Sabotaged . | . . . . . . . . . . . . . . . . . . . . . . . . . . . . . Garrisons Compromised . | . . . . . . . . . . . . . . . . . . . . . . . . . . . . . Overloaded Fab Kills . | . . . . . . . . . . . . . . . . . . . . . . . . . . . . . Fab Network Shutdowns 2 | . . . . . . . . . 1 . . . . . 1 . . . . . . . . . . . . . Hacking | -11 -10 -10 -10 -9 -8 -8 -8 -8 -7 -7 -7 -7 -7 -6 -6 -6 -5 -5 -5 -5 -4 -4 -4 -4 -4 -4 -3 -3 --------- Run | Scr Mat Min Exi Min Mat Gar Mat Gar Fac Low Low Zio Dee Pro Fac Gar Fac Upp Upp War Pro Fac Ext Cet Arc Hub Res Qua Machines Accessed 182 | . 6 . 1 1 16 . 11 . 36 2 4 . . . 20 . 21 1 . 3 . 15 14 4 . 12 15 . Terminals 105 | . 5 . . . 10 . 7 . 19 . 1 . . . 10 . 12 . . . . 7 14 4 . 11 5 . Fabricators 12 | . . . . . . . . . 6 . . . . . 2 . 2 . . . . 1 . . . . 1 . Repair Stations 9 | . . . . . 2 . . . 2 . . . . . 2 . 1 . . . . 1 . . . . 1 . Recycling Units 22 | . 1 . . . 1 . 2 . 5 . . . . . 3 . 4 . . . . 3 . . . . 3 . Scanalyzers 12 | . . . . . 2 . 1 . 1 . . . . . 2 . 2 . . . . 1 . . . . 3 . Garrison Access 11 | . . . . . 1 . 1 . 3 . . . . . 1 . . . . . . 2 . . . 1 2 . Total Hacks 925 | . 16 . 1 1 81 . 61 . 152 2 22 . . . 102 . 100 1 . 12 . 60 78 26 . 104 106 . Successful 628 | . 9 . 1 1 68 . 42 . 101 2 17 . . . 75 . 69 1 . 12 . 49 50 16 . 58 57 . Failed 295 | . 7 . . . 13 . 19 . 50 . 5 . . . 26 . 31 . . . . 11 28 10 . 46 49 . Catastrophic 23 | . . . . . 1 . 1 . . . . . . . 1 . 3 . . . . 1 5 1 . 6 4 . Database Lockouts 3 | . . . . . . . . . 2 . . . . . 1 . . . . . . . . . . . . . Manual 494 | . 12 . 1 . 31 . 32 . 94 . 13 6 . . 53 . 34 1 . . . 28 65 25 2 59 38 . Terminals 631 | . 13 . . . 50 . 44 . 95 . 17 . . . 68 . 63 . . . . 24 78 26 . 98 55 . Fabricators 55 | . . . . . . . . . 23 . . . . . 6 . 12 . . . . 4 . . . . 10 . Repair Stations 31 | . . . . . 7 . . . 6 . . . . . 8 . 4 . . . . 4 . . . . 2 . Recycling Units 79 | . 3 . . . 2 . 7 . 14 . . . . . 9 . 13 . . . . 14 . . . . 17 . Scanalyzers 57 | . . . . . 16 . 4 . 1 . . . . . 6 . 8 . . . . 8 . . . . 14 . Garrison Access 50 | . . . . . 6 . 6 . 13 . . . . . 5 . . . . . . 6 . . . 6 8 . Terminal Hacks 246 | . . . 1 1 25 . 16 . 29 2 13 . . . 29 . 26 1 . 12 . 7 18 8 . 38 20 . Record 24 | . . . . . 1 . . . . . 7 . . . 4 . 1 . . 8 . . . 2 . 1 . . Part Schematic 13 | . . . . . . . . . 5 . . . . . 2 . 1 . . . . 2 . . . 2 1 . Robot Schematic 3 | . . . . . . . . . 1 . . . . . . . 2 . . . . . . . . . . . Robot Analysis 27 | . . . . . 3 . 1 . 4 . . . . . 9 . 1 . . . . . 6 . . 3 . . Prototype ID Bank 13 | . . . . . 2 . 1 . 1 . . . . . 3 . 1 . . 4 . . . . . 1 . . Open Door 16 | . . . . 1 . . . . . 2 2 . . . . . . 1 . . . . 9 1 . . . . Level Access Points 5 | . . . . . . . . . 1 . . . . . . . 1 . . . . 1 . . . 1 1 . Branch Access Points 6 | . . . . . 1 . 1 . 1 . . . . . . . 1 . . . . . . . . 1 1 . Emergency Access Points 3 | . . . . . 1 . 1 . . . . . . . . . . . . . . . . . . . 1 . Machine Index 1 | . . . . . . . . . 1 . . . . . . . . . . . . . . . . . . . Terminal Index 5 | . . . . . . . . . 1 . . . . . . . 1 . . . . 1 . . . 1 1 . Fabricator Index 1 | . . . . . . . . . . . . . . . . . . . . . . . . . . 1 . . Repair Station Index 1 | . . . . . . . . . . . . . . . 1 . . . . . . . . . . . . . Recycling Unit Index 1 | . . . . . . . . . . . . . . . 1 . . . . . . . . . . . . . Scanalyzer Index 3 | . . . . . 1 . 1 . . . . . . . . . . . . . . . . . . 1 . . Garrison Index 1 | . . . . . . . . . . . . . . . . . 1 . . . . . . . . . . . Alert Level 6 | . . . . . 3 . 2 . . . 1 . . . . . . . . . . . . . . . . . Unreport Threat 38 | . . . . . 2 . 5 . 4 . 2 . . . 1 . 4 . . . . . 2 5 . 5 8 . Locate Traps 17 | . . . . . 1 . 1 . 5 . 1 . . . 1 . . . . . . 1 . . . 6 1 . Disarm Traps 1 | . . . . . . . . . . . . . . . . . . . . . . . 1 . . . . . Reprogram Traps 10 | . . . . . 1 . . . 2 . . . . . 2 . 1 . . . . 1 . . . 3 . . Dispatch Records 2 | . . . . . 1 . . . . . . . . . . . . . . . . . . . . 1 . . Surveillance Status 2 | . . . . . 1 . . . . . . . . . 1 . . . . . . . . . . . . . Patrol Status 1 | . . . . . . . . . . . . . . . 1 . . . . . . . . . . . . . Extermination Status 1 | . . . . . . . . . . . . . . . 1 . . . . . . . . . . . . . Reinforcement Status 3 | . . . . . . . . . . . . . . . . . 2 . . . . . . . . . 1 . Assault Status 1 | . . . . . . . . . . . . . . . . . 1 . . . . . . . . . . . Recall Extermination 1 | . . . . . . . . . . . . . . . . . . . . . . . . . . 1 . . Recall Reinforcements 5 | . . . . . 2 . . . . . . . . . . . 2 . . . . . . . . 1 . . Recall Assault 5 | . . . . . . . . . . . . . . . . . 1 . . . . 1 . . . 2 1 . Hauler Manifests 7 | . . . . . 2 . . . 2 . . . . . 1 . 1 . . . . . . . . 1 . . Registered Components 6 | . . . . . 1 . 1 . . . . . . . 1 . 1 . . . . . . . . 1 1 . Registered Prototypes 4 | . . . . . . . . . 1 . . . . . . . 1 . . . . . . . . 1 1 . Zone Layout 12 | . . . . . 2 . 2 . . . . . . . . . 2 . . . . . . . . 4 2 . EX-Prototype ID Bank 1 | . . . 1 . . . . . . . . . . . . . . . . . . . . . . . . . Fabricator Hacks 22 | . . . . . . . . . 9 . . . . . 2 . 5 . . . . 1 . . . . 5 . Network Status 3 | . . . . . . . . . 2 . . . . . . . . . . . . . . . . . 1 . Load Schematic 7 | . . . . . . . . . 2 . . . . . 1 . 2 . . . . . . . . . 2 . Build 12 | . . . . . . . . . 5 . . . . . 1 . 3 . . . . 1 . . . . 2 . Repair Station Hacks 26 | . . . . . 5 . . . 6 . . . . . 5 . 4 . . . . 4 . . . . 2 . Scan Component 14 | . . . . . 3 . . . 3 . . . . . 3 . 2 . . . . 2 . . . . 1 . Repair 12 | . . . . . 2 . . . 3 . . . . . 2 . 2 . . . . 2 . . . . 1 . Recycling Unit Hacks 35 | . 2 . . . 1 . 3 . 8 . . . . . 5 . 5 . . . . 5 . . . . 6 . Process 1 | . . . . . . . . . . . . . . . . . . . . . . 1 . . . . . . Report Inventory 22 | . 1 . . . 1 . 2 . 5 . . . . . 3 . 4 . . . . 3 . . . . 3 . Retrieve Components 12 | . 1 . . . . . 1 . 3 . . . . . 2 . 1 . . . . 1 . . . . 3 . Scanalyzer 45 | . . . . . 15 . 4 . . . . . . . 5 . 6 . . . . 8 . . . . 7 . Insert Component 21 | . . . . . 7 . 2 . . . . . . . 3 . 2 . . . . 3 . . . . 4 . Analyze 24 | . . . . . 8 . 2 . . . . . . . 2 . 4 . . . . 5 . . . . 3 . Garrison Access Hacks 15 | . . . . . 2 . 2 . 4 . . . . . 2 . . . . . . 2 . . . 1 2 . Unlock Access 5 | . . . . . 1 . 1 . 2 . . . . . 1 . . . . . . . . . . . . . Seal Access 1 | . . . . . . . . . . . . . . . . . . . . . . . . . . 1 . . Coupler Status 9 | . . . . . 1 . 1 . 2 . . . . . 1 . . . . . . 2 . . . . 2 . Unauthorized Hacks 573 | . 19 . . . 45 . 43 . 114 . 11 . . . 61 . 51 . . . . 49 72 18 . 48 42 . Terminals 174 | . 6 . . . 16 . 12 . 25 . 4 . . . 20 . 17 . . . . 9 32 8 . 18 7 . Track 18 | . . . . . 2 . . . 3 . 1 . . . 3 . . . . . . 1 7 1 . . . . Assimilate 24 | . . . . . 2 . 2 . 6 . 1 . . . 3 . 4 . . . . 1 2 . . 2 1 . Botnet 94 | . 5 . . . 10 . 6 . 16 . 1 . . . 10 . 10 . . . . 5 12 4 . 10 5 . Detonate 4 | . . . . . . . . . . . . . . . . . . . . . . . . . . 3 1 . Disrupt 26 | . . . . . 1 . 2 . . . 1 . . . 3 . 3 . . . . 1 9 3 . 3 . . Operators 8 | . 1 . . . 1 . 2 . . . . . . . 1 . . . . . . 1 2 . . . . . Fabricators 19 | . . . . . . . . . 9 . . . . . 2 . 4 . . . . 3 . . . . 1 . Report 4 | . . . . . . . . . 2 . . . . . . . 1 . . . . 1 . . . . . . Siphon 10 | . . . . . . . . . 4 . . . . . 2 . 2 . . . . 1 . . . . 1 . Haulers 5 | . . . . . . . . . 3 . . . . . . . 1 . . . . 1 . . . . . . Repair Stations . | . . . . . . . . . . . . . . . . . . . . . . . . . . . . . Recycling Units 19 | . 1 . . . 1 . 2 . 3 . . . . . 2 . 2 . . . . 6 . . . . 2 . Monitor 2 | . . . . . . . 1 . . . . . . . . . . . . . . 1 . . . . . . Reject 10 | . 1 . . . 1 . 1 . 1 . . . . . 2 . 1 . . . . 2 . . . . 1 . Mask 6 | . . . . . . . . . 2 . . . . . . . 1 . . . . 2 . . . . 1 . Tunnel 1 | . . . . . . . . . . . . . . . . . . . . . . 1 . . . . . . Scanalyzers 1 | . . . . . . . . . 1 . . . . . . . . . . . . . . . . . . . Extract 1 | . . . . . . . . . 1 . . . . . . . . . . . . . . . . . . . Garrison Access 26 | . . . . . 3 . 3 . 7 . . . . . 3 . . . . . . 4 . . . 1 5 . Broadcast 8 | . . . . . 1 . 1 . 2 . . . . . 1 . . . . . . 1 . . . . 2 . Reprogram 10 | . . . . . 1 . 1 . 2 . . . . . 1 . . . . . . 2 . . . 1 2 . Watchers 8 | . . . . . 1 . 1 . 3 . . . . . 1 . . . . . . 1 . . . . 1 . Data Cores Recovered . | . . . . . . . . . . . . . . . . . . . . . . . . . . . . . Used . | . . . . . . . . . . . . . . . . . . . . . . . . . . . . . Hacking Detections 152 | . 5 . . . 16 . 9 . 34 . 1 . . . 18 . 18 . . . . 12 13 4 . 12 10 . Full Trace Events 18 | . 1 . . . 1 . . . 4 . 1 . . . 2 . 2 . . . . 2 2 . . 1 2 . Feedback Events 2 | . . . . . . . . . . . 1 . . . . . . . . . . 1 . . . . . . Corruption 2 | . . . . . . . . . . . 1 . . . . . . . . . . 1 . . . . . . Feedback Blocked . | . . . . . . . . . . . . . . . . . . . . . . . . . . . . . Robot Schematics Acquired 3 | . . . . . . . . . 1 . . . . . . . 2 . . . . . . . . . . . Robots Built 7 | . . . . . . . . . 2 . . . . . . . 5 . . . . . . . . . . . Matter 616 | . . . . . . . . . 189 . . . . . . . 427 . . . . . . . . . . . Time 370 | . . . . . . . . . 67 . . . . . . . 303 . . . . . . . . . . . Total Robot Build Rating 30 | . . . . . . . . . 8 . . . . . . . 22 . . . . . . . . . . . Part Schematics Acquired 34 | . . . . . 6 . 2 . 8 . . . . . 4 . 3 . . . . 5 . . . 2 4 . Parts Built 12 | . . . . . . . . . 3 . . . . . 2 . 1 . . . . 2 . . . . 4 . Matter 1722 | . . . . . . . . . 506 . . . . . 212 . 256 . . . . 278 . . . . 470 . Time 506 | . . . . . . . . . 162 . . . . . 53 . 64 . . . . 139 . . . . 88 . Total Part Build Rating 85 | . . . . . . . . . 13 . . . . . 12 . 8 . . . . 18 . . . . 34 . Parts Repaired 11 | . . . . . 2 . . . 3 . . . . . 2 . 2 . . . . 2 . . . . . . Time 417 | . . . . . 96 . . . 101 . . . . . 50 . 50 . . . . 100 . . . . 20 . Parts Recycled . | . . . . . . . . . . . . . . . . . . . . . . . . . . . . . Recycled Matter 15 | . . . . . . . . . . . . . . . . . . . . . . 15 . . . . . . Retrieved Matter . | . . . . . . . . . . . . . . . . . . . . . . . . . . . . . Retrieved Components 60 | . 7 . . . . . 10 . 18 . . . . . 10 . 2 . . . . 1 . . . . 12 . Parts Scanalyzed 18 | . . . . . 6 . 2 . . . . . . . 2 . 2 . . . . 3 . . . . 3 . Part Schematics Acquired 18 | . . . . . 6 . 2 . . . . . . . 2 . 2 . . . . 3 . . . . 3 . Parts Damaged 1 | . . . . . 1 . . . . . . . . . . . . . . . . . . . . . . . Bothacking | -11 -10 -10 -10 -9 -8 -8 -8 -8 -7 -7 -7 -7 -7 -6 -6 -6 -5 -5 -5 -5 -4 -4 -4 -4 -4 -4 -3 -3 ------------ Run | Scr Mat Min Exi Min Mat Gar Mat Gar Fac Low Low Zio Dee Pro Fac Gar Fac Upp Upp War Pro Fac Ext Cet Arc Hub Res Qua Used RIF Installer 3 | . . . . . . 1 . 1 . . . . . . . 1 . . . . . . . . . . . . Robot Detection 1 | . . . . . . . . . . . . . . . . 1 . . . . . . . . . . . . Program Shield 1 | . . . . . . . . 1 . . . . . . . . . . . . . . . . . . . . Robots Hacked 72 | . . . . . . . 6 3 34 1 . . . . 6 7 12 1 . . . 2 . . . . . . Non-combat 42 | . . . . . . . 4 . 26 1 . . . . 6 . 3 . . . . 2 . . . . . . Combat 30 | . . . . . . . 2 3 8 . . . . . . 7 9 1 . . . . . . . . . . Robot Hacks Applied 104 | . . . . . . . 7 3 60 1 . . . . 8 8 14 1 . . . 2 . . . . . . parse_system 6 | . . . . . . . . . 1 1 . . . . . 1 1 1 . . . 1 . . . . . . no_distress 5 | . . . . . . . . . 4 . . . . . 1 . . . . . . . . . . . . . generate_echo 3 | . . . . . . . 1 . 2 . . . . . . . . . . . . . . . . . . . find_chute 20 | . . . . . . . . . 18 . . . . . 2 . . . . . . . . . . . . . hold_bot 1 | . . . . . . . . . 1 . . . . . . . . . . . . . . . . . . . start_disposal 1 | . . . . . . . . . 1 . . . . . . . . . . . . . . . . . . . ignore_repairs 3 | . . . . . . . . . 2 . . . . . . . 1 . . . . . . . . . . . map_walls 5 | . . . . . . . 1 . 4 . . . . . . . . . . . . . . . . . . . map_earth 4 | . . . . . . . 1 . 3 . . . . . . . . . . . . . . . . . . . find_fabricator 3 | . . . . . . . . . 2 . . . . . 1 . . . . . . . . . . . . . drop_inventory 4 | . . . . . . . . . 4 . . . . . . . . . . . . . . . . . . . find_recycling 7 | . . . . . . . 1 . 2 . . . . . 2 . 2 . . . . . . . . . . . ignore_parts 6 | . . . . . . . 1 . 2 . . . . . 1 . 1 . . . . 1 . . . . . . find_station 2 | . . . . . . . . . 2 . . . . . . . . . . . . . . . . . . . check_alert 1 | . . . . . . . . . . . . . . . 1 . . . . . . . . . . . . . relay_feed 1 | . . . . . . . . . 1 . . . . . . . . . . . . . . . . . . . link_fov 3 | . . . . . . . . . 3 . . . . . . . . . . . . . . . . . . . spike_heat 3 | . . . . . . . . . 1 . . . . . . 2 . . . . . . . . . . . . disable_weapons 1 | . . . . . . . . 1 . . . . . . . . . . . . . . . . . . . . overwrite_iff 6 | . . . . . . . 2 . . . . . . . . 1 3 . . . . . . . . . . . formatsys_high 19 | . . . . . . . . 2 7 . . . . . . 4 6 . . . . . . . . . . . Relay Couplers Released 27 | . . . . . . 8 . 8 4 . . . . . . 5 1 . . . . . . . . 1 . . Machine Destruction 23 | . . . . . . 8 . 8 . . . . . . . 5 1 . . . . . . . . 1 . . Programmers 4 | . . . . . . . . . 4 . . . . . . . . . . . . . . . . . . . Attached 9 | . . . . . . 2 1 1 2 . . . . . . 2 1 . . . . . . . . . . . Robots Rewired 16 | . . . . . . 4 . . . 2 . . . . . . . . 1 . . . 9 . . . . . Allies Hacked 3 | . . . . . . . . . . . . . . . . . 1 . . . . . . . . . 2 . Hacks Repelled . | . . . . . . . . . . . . . . . . . . . . . . . . . . . . . Allies | -11 -10 -10 -10 -9 -8 -8 -8 -8 -7 -7 -7 -7 -7 -6 -6 -6 -5 -5 -5 -5 -4 -4 -4 -4 -4 -4 -3 -3 -------- Run | Scr Mat Min Exi Min Mat Gar Mat Gar Fac Low Low Zio Dee Pro Fac Gar Fac Upp Upp War Pro Fac Ext Cet Arc Hub Res Qua Total Allies 93 | . . . . 3 1 . 3 2 15 2 . . . . . 5 19 . 1 . . 4 24 2 . 2 3 7 Largest Group 16 | . . . . 3 1 1 1 2 6 6 5 3 . . . 1 5 . 1 . . 3 16 2 . 1 2 7 Highest-Rated Group 803 | . . . . 40 10 10 26 32 152 159 129 84 . . . 38 168 . 30 . . 141 803 188 . 26 112 143 Highest-Rated Ally 156 | . . . . 16 10 10 26 16 54 32 32 32 . . . 38 60 . 30 . . 47 156 94 . 26 56 65 Total Orders 26 | . . . . . . 4 1 . 4 . . 4 . . 5 1 5 . . . . 1 . . . . 1 . GOTO 4 | . . . . . . 1 . . . . . 3 . . . . . . . . . . . . . . . . ROAM 1 | . . . . . . . . . . . . 1 . . . . . . . . . . . . . . . . FOLLOW 2 | . . . . . . 1 . . 1 . . . . . . . . . . . . . . . . . . . GUARD 1 | . . . . . . . . . 1 . . . . . . . . . . . . . . . . . . . AID 1 | . . . . . . . . . . . . . . . . 1 . . . . . . . . . . . . EXPLORE 17 | . . . . . . 2 1 . 2 . . . . . 5 . 5 . . . . 1 . . . . 1 . Ally Attacks 505 | . . . . 9 . . 11 30 27 28 28 8 . . . 27 47 . 2 . . 23 223 10 . . 4 28 Total Damage 12526 | . . . . 103 . . 143 359 565 696 696 310 . . . 460 912 . 34 . . 626 6179 414 . . 139 890 Kills 87 | . . . . 2 . . 1 3 4 6 7 . . . . 3 7 . . . . 6 41 2 . . . 5 Allies Corrupted 3 | . . . . . . . . . 1 . . . . . . . . . . . . . 1 . . 1 . . Allies Melted . | . . . . . . . . . . . . . . . . . . . . . . . . . . . . . Intel | -11 -10 -10 -10 -9 -8 -8 -8 -8 -7 -7 -7 -7 -7 -6 -6 -6 -5 -5 -5 -5 -4 -4 -4 -4 -4 -4 -3 -3 ------- Run | Scr Mat Min Exi Min Mat Gar Mat Gar Fac Low Low Zio Dee Pro Fac Gar Fac Upp Upp War Pro Fac Ext Cet Arc Hub Res Qua Robot Analysis Total 27 | . . . . . 3 . 1 . 4 . . . . . 9 . 1 . . . . . 6 . . 3 . . Derelict Logs Recovered 13 | . . 2 . 1 . . . . . 1 1 1 . 2 . . . 1 2 . 2 . . . . . . . Drone Launches 44 | . . . . . . . . . 2 . . . . . 6 . 25 . . . . 8 . . . . 3 . Drone Recoveries . | . . . . . . . . . . . . . . . . . . . . . . . . . . . . . Exploration | -11 -10 -10 -10 -9 -8 -8 -8 -8 -7 -7 -7 -7 -7 -6 -6 -6 -5 -5 -5 -5 -4 -4 -4 -4 -4 -4 -3 -3 ------------- Run | Scr Mat Min Exi Min Mat Gar Mat Gar Fac Low Low Zio Dee Pro Fac Gar Fac Upp Upp War Pro Fac Ext Cet Arc Hub Res Qua Turns Passed 34464 | 71 502 373 211 650 2183 1685 640 1671 3992 878 926 1543 3169 757 1490 1474 2049 962 740 648 839 1531 1214 395 1125 887 1489 370 Spaces Moved 42575 | 53 332 327 312 988 2034 1731 801 1504 4914 1236 1283 2522 4301 1219 2500 1275 2697 1469 1126 731 1492 1595 1589 488 239 1343 2046 428 Core 13 | 13 . . . . . . . . . . . . . . . . . . . . . . . . . . . . Treads 151 | 7 123 21 . . . . . . . . . . . . . . . . . . . . . . . . . . Legs 1 | . . 1 . . . . . . . . . . . . . . . . . . . . . . . . . . Wheels 667 | 33 209 305 120 . . . . . . . . . . . . . . . . . . . . . . . . . Hover . | . . . . . . . . . . . . . . . . . . . . . . . . . . . . . Flight 41743 | . . . 192 988 2034 1731 801 1504 4914 1236 1283 2522 4301 1219 2500 1275 2697 1469 1126 731 1492 1595 1589 488 239 1343 2046 428 Fastest Speed 34 | 50 80 80 50 50 50 50 50 50 39 39 39 39 39 39 34 42 42 42 42 42 42 39 37 37 37 37 37 37 Average Speed 43 | 83 110 93 65 50 50 50 50 50 48 39 39 39 39 39 39 42 42 42 42 42 42 40 40 37 37 37 37 37 Slowest Speed 207 | 160 160 160 90 50 50 50 50 50 50 39 39 39 175 39 121 42 42 42 150 42 42 132 42 123 37 207 123 37 Overloaded Moves 3 | . . . . . . . . . . . . . . . 3 . . . . . . . . . . . . . Propulsion Burnouts . | . . . . . . . . . . . . . . . . . . . . . . . . . . . . . Robots Hopped 175 | . . . . 3 10 . 3 1 33 10 1 2 6 1 6 4 11 2 . 1 . 16 31 2 . 1 23 8 Cave-ins Triggered 3 | . . . . . . . . . . . . . 1 . . 1 . . . . . . . . . . 1 . Exploration Rate (%) 79 | 4 55 67 70 96 98 94 63 97 94 99 97 90 94 98 62 98 88 98 97 49 98 47 85 84 83 91 51 56 Regions Visited 28 Branch Regions 17 Pre-discovered Areas 4 | . . 1 . . . . . . . . . . . . . . . 1 . . 1 1 . . . . . . Known Exits Taken 10 | . . . . . 1 . 1 . 1 . . . . 1 1 . 1 . . . 1 1 . . . 1 1 . Unknown Exits Taken 15 | 1 1 1 1 1 . . . . . 1 1 1 1 . . . . 1 1 1 . . 1 1 1 . . . Scrap Searched 21 | . . . . 1 . . . . . 3 4 3 . 1 . . . 4 1 . 4 . . . . . . . Spaces Dug 1471 | . . . . . 183 69 13 121 199 . 24 2 50 116 36 190 100 11 . . . 84 25 . . 72 145 31 Terrain Destroyed 3292 | . . . . 23 189 69 13 121 199 . 24 2 314 168 36 254 120 11 40 . . 85 26 . . 1419 147 32 Melee 1432 | . . . . . 182 69 13 121 199 . 24 2 12 116 36 190 100 11 . . . 84 25 . . 72 145 31 Projectile 30 | . . . . 18 7 . . . . . . . . . . . . . . . . 1 1 . . . 2 1 AOE 1830 | . . . . 5 . . . . . . . . 302 52 . 64 20 . 40 . . . . . . 1347 . . Actions | -11 -10 -10 -10 -9 -8 -8 -8 -8 -7 -7 -7 -7 -7 -6 -6 -6 -5 -5 -5 -5 -4 -4 -4 -4 -4 -4 -3 -3 --------- Run | Scr Mat Min Exi Min Mat Gar Mat Gar Fac Low Low Zio Dee Pro Fac Gar Fac Upp Upp War Pro Fac Ext Cet Arc Hub Res Qua Total 53791 | 64 415 362 319 1078 2689 2209 938 2056 5995 1567 1594 2915 5562 1401 2925 1785 3341 1768 1307 937 1652 2267 1970 628 1258 1621 2585 583 Wait 5908 | . 32 4 . 11 294 173 48 296 610 275 213 120 703 9 284 122 359 210 84 69 70 417 108 53 965 166 208 5 Move 42213 | 52 331 326 311 981 2013 1729 796 1500 4852 1215 1280 2517 4287 1216 2488 1265 2675 1464 1125 728 1491 1564 1530 483 238 1340 2003 413 Hop 155 | . . . . 3 10 . 2 1 28 10 1 2 6 1 6 3 10 2 . 1 . 14 27 2 . 1 18 7 Pick Up 122 | . 2 . 1 3 8 5 3 9 8 3 . 6 18 . 2 3 2 5 . . 5 9 10 1 3 3 8 5 Fast Attach 291 | 6 7 2 1 8 16 6 5 1 23 . 6 23 48 2 20 . 14 10 2 . 6 18 17 7 7 6 18 12 Attach 24 | . . . . . 3 1 1 . 2 . . 4 . . . 2 1 . . . 1 4 1 . . 1 2 1 Detach 187 | . 1 . . 1 4 2 . . 1 . . 7 29 3 20 2 11 16 2 . 1 24 14 3 11 7 11 17 Swap 109 | . . 1 1 . 9 1 3 . 12 1 . 9 28 . 3 4 2 1 . 3 5 6 5 3 1 3 4 4 Drop 387 | . 2 1 5 8 22 6 10 8 25 3 6 25 79 2 19 1 14 14 2 . 11 29 27 11 8 7 24 18 Fire 529 | 6 25 16 . 42 26 8 2 2 55 4 . . 31 7 11 15 33 6 38 73 31 5 44 20 7 3 9 10 Melee 2722 | . . . . 10 237 179 55 190 290 32 67 151 231 139 69 264 161 28 8 8 8 133 87 16 5 84 209 61 Ram . | . . . . . . . . . . . . . . . . . . . . . . . . . . . . . Kick . | . . . . . . . . . . . . . . . . . . . . . . . . . . . . . Crush 1 | . 1 . . . . . . . . . . . . . . . . . . . . . . . . . . . Escape Stasis 123 | . . . . . . 8 . 20 . . . . 1 . . 41 . . . . . . 28 . . . 16 9 Rewire 16 | . . . . . . . . 1 3 . . . . . . 4 6 1 . . . . . . . . 1 . Trap 79 | . . . . . . 47 1 . 14 . 1 . . . . . . . 16 . . . . . . . . . Miscellaneous 925 | . 14 12 . 11 47 44 12 28 72 24 20 51 101 22 3 59 53 11 30 55 23 44 72 29 13 . 54 21 Route ------- -11/Scrapyard -10/Materials (discovered 2 exits: [*Mat] / [*Min]) -10/Mines (discovered 2 exits: [*Mat] / *Exi) -10/Exiles -9/Mines (discovered 2 exits: *Mat x2) -8/Materials (discovered 4 exits: *Fac x3 / Gar) -8/Garrison (discovered 3 exits: *Mat x3) -8/Materials (discovered 3 exits: *Fac x2 / Gar) -8/Garrison (discovered 3 exits: *Fac x3) -7/Factory (discovered 10 exits: *Fac x4 / *Sto x2 / *Low x2 / Gar / Gar) -7/Lower Caves -7/Lower Caves (discovered 2 exits: *Fac / *Zio) -7/Zion (discovered 2 exits: [*Dee] / [*Pro]) -7/Deep Caves -6/Proximity Caves -6/Factory (discovered 7 exits: *Fac x4 / *Low x2 / Gar) -6/Garrison (discovered 3 exits: *Fac x3) -5/Factory (discovered 6 exits: *Fac x4 / *Upp x2) -5/Upper Caves -5/Upper Caves (discovered 2 exits: *Fac / *War) -5/Warlord -4/Proximity Caves -4/Factory (discovered 6 exits: *Res x4 / [*Upp] / *Ext) -4/Extension (discovered 3 exits: *Res x2 / *Cet) -4/Cetus (discovered 2 exits: *Res / *Arc) -4/Archives (discovered 3 exits: *Res / *Hub x2) -4/Hub_04(d) (discovered 4 exits: *Res x4) -3/Research (discovered 6 exits: Res x3 / Arm / *Qua x2) -3/Quarantine History --------- Turn | Location | Event 1 | -11/Scrapyard | Upgraded with Propulsion slot (x2) 1 | -11/Scrapyard | Upgraded with Utility slot (x1) 1 | -11/Scrapyard | Upgraded with Weapon slot (x1) 13 | -11/Scrapyard | Discovered new exit (range 16) 72 | -11/Scrapyard | Entered Materials 236 | -10/Materials | Discovered new exit (range 13) 308 | -10/Materials | Build established: Mutant 447 | -10/Materials | Discovered new exit (range 13) 574 | -10/Materials | Entered Mines 633 | -10/Mines | Reached level 2 653 | -10/Mines | Upgraded with Propulsion slot (x1) 653 | -10/Mines | Upgraded with Utility slot (x1) 805 | -10/Mines | Learned 4 Materials zone layouts 819 | -10/Mines | Learned location of Zion (-7) 847 | -10/Mines | Deemed a non-threat by the Exiles lab entrance 847 | -10/Mines | Discovered new exit (range 5) 883 | -10/Mines | Discovered new exit (range 10) 947 | -10/Mines | Entered Exiles 969 | -10/Exiles | Met 8R-AWN 985 | -10/Exiles | Met EX-HEX 1013 | -10/Exiles | Met EX-BIN 1026 | -10/Exiles | Aligned with FarCom system 1027 | -10/Exiles | Given EX-Vault access code 1050 | -10/Exiles | Opened EX-Vault 1058 | -10/Exiles | Found Flying Fortress v7 1070 | -10/Exiles | Warned to stay clear of 0b10 Research branches 1084 | -10/Exiles | Met EX-DEC 1152 | -10/Exiles | Discovered new exit (range 14) 1158 | -10/Exiles | Left Exiles lab with Flying Fortress v7 1158 | -10/Exiles | Entered Mines 1161 | -9/Mines | Met a Derelict who couldn't figure out how to use a Trap Extractor 1217 | -9/Mines | Learned Materials emergency access door positions 1272 | -9/Mines | Assembled infested the area 1288 | -9/Mines | Reached level 3 1294 | -9/Mines | Upgraded with Weapon slot (x1) 1301 | -9/Mines | Discovered new exit (range 15) 1315 | -9/Mines | Assisted by bots powering up and referring to "LRC-V3" 1727 | -9/Mines | Discovered new exit (range 16) 1729 | -9/Mines | Destroyed 7 combat bots 1758 | -9/Mines | Build established: Gladiator 1808 | -9/Mines | Entered Materials 1809 | -8/Materials | Identified exit to Factory 1810 | -8/Materials | Reached level 4 1810 | -8/Materials | Upgraded with Utility slot (x1) 1924 | -8/Materials | Reached level 5 1936 | -8/Materials | Upgraded with Power slot (x1) 2249 | -8/Materials | Reached level 6 2254 | -8/Materials | Upgraded with Weapon slot (x1) 3023 | -8/Materials | Reached level 7 3050 | -8/Materials | Destroyed 7 combat bots 3102 | -8/Materials | Upgraded with Utility slot (x1) 3374 | -8/Materials | Repaired Broken Adv. Heat Sink 3401 | -8/Materials | Repaired Weapon Shielding 3813 | -8/Materials | Discovered exit to Factory (range 11) 3946 | -8/Materials | Identified exit to Garrison 3953 | -8/Materials | Discovered exit to Factory (range 14) 3991 | -8/Materials | Entered Garrison 3991 | -8/Garrison | Accompanied by 1 ally 4063 | -8/Garrison | Build established: Hacker-Gladiator 4110 | -8/Garrison | Triggered checkpoint 4124 | -8/Garrison | Reached level 8 4130 | -8/Garrison | Upgraded with Weapon slot (x1) 4208 | -8/Garrison | Triggered checkpoint 4286 | -8/Garrison | Triggered checkpoint 4312 | -8/Garrison | Destroyed 11 combat bots 4334 | -8/Garrison | Triggered checkpoint 4361 | -8/Garrison | Garrison Relay disabled 4361 | -8/Garrison | Reached level 9 4365 | -8/Garrison | Upgraded with Utility slot (x1) 4377 | -8/Garrison | Discovered new exit (range 12) 4446 | -8/Garrison | Triggered checkpoint 4493 | -8/Garrison | Discovered new exit (range 14) 4770 | -8/Garrison | Discovered new exit (range 15) 4824 | -8/Garrison | Triggered checkpoint 5026 | -8/Garrison | Triggered checkpoint 5087 | -8/Garrison | Garrison Relay disabled 5154 | -8/Garrison | Triggered checkpoint 5265 | -8/Garrison | Garrison Relay disabled 5265 | -8/Garrison | Reached level 10 5363 | -8/Garrison | Garrison Relay disabled 5445 | -8/Garrison | Installed Relay Interface Framework 5676 | -8/Garrison | Entered Materials 5676 | -8/Materials | Accompanied by 1 ally 5893 | -8/Materials | Reached level 11 5893 | -8/Materials | Upgraded with Utility slot (x1) 5994 | -8/Materials | Build established: Bothacker-Gladiator 6085 | -8/Materials | Discovered exit to Factory (range 16) 6265 | -8/Materials | Discovered exit to Factory (range 20) 6316 | -8/Materials | Identified exit to Garrison 6316 | -8/Materials | Entered Garrison 6494 | -8/Garrison | Triggered checkpoint 6512 | -8/Garrison | Garrison Relay disabled 6616 | -8/Garrison | Triggered checkpoint 6758 | -8/Garrison | Reached level 12 6982 | -8/Garrison | Discovered exit to Factory (range 7) 6989 | -8/Garrison | Expanded RIF knowledge: Program Shield 7066 | -8/Garrison | Triggered checkpoint 7077 | -8/Garrison | Garrison Relay disabled 7175 | -8/Garrison | Discovered exit to Factory (range 10) 7326 | -8/Garrison | Triggered checkpoint 7398 | -8/Garrison | Triggered checkpoint 7446 | -8/Garrison | Discovered exit to Factory (range 14) 7580 | -8/Garrison | Triggered checkpoint 7628 | -8/Garrison | Triggered checkpoint 7637 | -8/Garrison | Garrison Relay disabled 7720 | -8/Garrison | Triggered checkpoint 7875 | -8/Garrison | Garrison Relay disabled 7875 | -8/Garrison | Reached level 13 7944 | -8/Garrison | Triggered checkpoint 7987 | -8/Garrison | Entered Factory 7989 | -7/Factory | Reached level 14 7991 | -7/Factory | Upgraded with Utility slot (x1) 8413 | -7/Factory | Fabricated System Backup Module (x2) 8708 | -7/Factory | Build established: Bothacker-Mutant 9311 | -7/Factory | Discovered new exit (range 17) 9464 | -7/Factory | Discovered new exit (range 6) 9556 | -7/Factory | Identified exit to Garrison 9603 | -7/Factory | Found Prototype Launcher 9603 | -7/Factory | Identified Rocket Array 9766 | -7/Factory | Central database locked down 9802 | -7/Factory | Reached level 15 9831 | -7/Factory | Discovered new exit (range 7) 9977 | -7/Factory | Fabricated Imp. Hacking Suite (x1) 10136 | -7/Factory | Build established: Hacker-Mutant 10478 | -7/Factory | Discovered new exit (range 5) 10647 | -7/Factory | Identified exit to Garrison 10693 | -7/Factory | Discovered new exit (range 5) 10762 | -7/Factory | Discovered new exit (range 16) 10787 | -7/Factory | First assault squad dispatched 11039 | -7/Factory | Repaired Imp. Propulsion Shielding 11149 | -7/Factory | Identified exit to Storage 11149 | -7/Factory | Identified exit to Lower Caves 11307 | -7/Factory | Fabricated Y-54 Guardian (x2) 11357 | -7/Factory | Repaired Reactive Plating 11403 | -7/Factory | Repaired Greatsword 11429 | -7/Factory | Discovered new exit (range 9) 11472 | -7/Factory | Local fabrication network quarantined 11660 | -7/Factory | Reached level 16 11674 | -7/Factory | Upgraded with Propulsion slot (x1) 11725 | -7/Factory | Identified exit to Factory 11979 | -7/Factory | Entered Lower Caves 11979 | -7/Lower Caves | Accompanied by 6 allies 12482 | -7/Lower Caves | Learned location of 2 exits from Factory 12598 | -7/Lower Caves | Attracted the attention of an 0b10 outpost 12672 | -7/Lower Caves | Discovered new exit (range 9) 12857 | -7/Lower Caves | Entered another Lower Caves area 12857 | -7/Lower Caves | Accompanied by 5 allies 12858 | -7/Lower Caves | Encountered a Warlord checkpoint 12942 | -7/Lower Caves | Discovered exit to Factory (range 10) 13001 | -7/Lower Caves | Reached level 17 13183 | -7/Lower Caves | Learned location of 1 exit from Factory 13183 | -7/Lower Caves | Learned Extension trap positions 13335 | -7/Lower Caves | Attracted the attention of an 0b10 base 13399 | -7/Lower Caves | Learned Extension security intel 13633 | -7/Lower Caves | Attracted the attention of an 0b10 checkpoint 13727 | -7/Lower Caves | Discovered new exit (range 5) 13783 | -7/Lower Caves | Entered Zion 13783 | -7/Zion | Accompanied by 3 allies 13791 | -7/Zion | Given A8's code to call for help 13803 | -7/Zion | Discovered new exit (range 16) 13841 | -7/Zion | Found Relay Coupler [Programmer] 13843 | -7/Zion | Found Relay Coupler [Programmer] 13899 | -7/Zion | System corruption cleaned by Quarantine Array 13901 | -7/Zion | RIF detected upon attempting to enter Zion 13901 | -7/Zion | Attacked by Zionites 13901 | -7/Zion | Spotted HI-SR6(B) 13901 | -7/Zion | Spotted V6-43U(B) 13923 | -7/Zion | Destroyed HI-SR6(B) 13954 | -7/Zion | Destroyed V6-43U(B) 14078 | -7/Zion | Core integrity fell below 50% 14276 | -7/Zion | Destroyed Imprinter 14278 | -7/Zion | Extracted access codes from Imprinter's data core 14448 | -7/Zion | Found Prototype Processor 14448 | -7/Zion | Identified Exp. Targeting Computer 14449 | -7/Zion | Found Prototype Processor 14449 | -7/Zion | Identified Exp. Armor Integrity Analyzer 14523 | -7/Zion | Learned Factory emergency access door positions 15317 | -7/Zion | Opened final containment barrier to the Deep Caves 15324 | -7/Zion | Discovered new exit (range 3) 15324 | -7/Zion | Saw the warning signs outside the Deep Caves entrance 15326 | -7/Zion | Entered Deep Caves 15469 | -7/Deep Caves | Found Prototype Protection 15469 | -7/Deep Caves | Identified Zio. Weapon Casing 15756 | -7/Deep Caves | Z-Facility disabled 15824 | -7/Deep Caves | Found Zio. Weapon Casing 15833 | -7/Deep Caves | Found Zio. Weapon Casing 15952 | -7/Deep Caves | Found Zio. Weapon Casing 15957 | -7/Deep Caves | Found Prototype Protection 15957 | -7/Deep Caves | Identified Zio. Heavy Carapace 16036 | -7/Deep Caves | Discovered new exit (range 7) 16089 | -7/Deep Caves | Spotted as-34389 16165 | -7/Deep Caves | Destroyed as-34389 16168 | -7/Deep Caves | Found GOLEM Unit 16444 | -7/Deep Caves | Build established: Hacker-Gladiator 16558 | -7/Deep Caves | Spotted as-65687 16588 | -7/Deep Caves | Found Surveybot 24 Scanner 16680 | -7/Deep Caves | Found Zio. Weapon Casing 17029 | -7/Deep Caves | Build established: Hacker-Mutant 17191 | -7/Deep Caves | Crushed by falling debris 17518 | -7/Deep Caves | Exposed GOLEM chamber 17524 | -7/Deep Caves | Destroyed as-65687 17540 | -7/Deep Caves | Triggered Deep Caves wall 17582 | -7/Deep Caves | Reached level 18 17586 | -7/Deep Caves | Spotted AS-50043 17589 | -7/Deep Caves | Destroyed 33 combat bots 17636 | -7/Deep Caves | Spotted AS-26204 17652 | -7/Deep Caves | Triggered Deep Caves wall 17653 | -7/Deep Caves | Destroyed AS-26204 17656 | -7/Deep Caves | Destroyed AS-50043 17724 | -7/Deep Caves | Found GOLEM Unit 17797 | -7/Deep Caves | Found GOLEM Unit 17878 | -7/Deep Caves | Destroyed 11 combat bots 17937 | -7/Deep Caves | Found GOLEM Unit 18119 | -7/Deep Caves | Found Skeleton Box 18495 | -7/Deep Caves | Entered Proximity Caves 18535 | -6/Proximity Caves | Learned Factory trap positions 18583 | -6/Proximity Caves | Spotted B-75 Beast 18637 | -6/Proximity Caves | Destroyed B-75 Beast 19038 | -6/Proximity Caves | Reached level 19 19225 | -6/Proximity Caves | Learned Factory terminal intel 19252 | -6/Proximity Caves | Entered Factory 19253 | -6/Factory | Identified exit to Factory 19254 | -6/Factory | Identified exit to Lower Caves 19255 | -6/Factory | Loaded intel: 106 trap records 19257 | -6/Factory | Loaded intel: 20 terminal locations 19380 | -6/Factory | Found Powered Armor 20081 | -6/Factory | Spotted B-75 Beast 20165 | -6/Factory | Repaired Remote Datajack 20348 | -6/Factory | Fabricated Lance (x2) 20459 | -6/Factory | Central database locked down 20563 | -6/Factory | Local fabrication network quarantined 20576 | -6/Factory | Repaired Smartbomb Launcher 20652 | -6/Factory | First assault squad dispatched 20656 | -6/Factory | Found Powered Armor 20742 | -6/Factory | Identified exit to Garrison 20742 | -6/Factory | Entered Garrison 20941 | -6/Garrison | Crushed by falling debris 20980 | -6/Garrison | Spotted B-75 Beast 21051 | -6/Garrison | Reached level 20 21073 | -6/Garrison | Upgraded with Utility slot (x1) 21102 | -6/Garrison | Core integrity fell below 50% 21170 | -6/Garrison | Triggered checkpoint 21218 | -6/Garrison | Destroyed B-75 Beast 21435 | -6/Garrison | Garrison Relay disabled 21466 | -6/Garrison | Triggered checkpoint 21608 | -6/Garrison | Triggered checkpoint 21666 | -6/Garrison | Garrison Relay disabled 21813 | -6/Garrison | Expanded RIF knowledge: Robot Detection 21850 | -6/Garrison | Triggered checkpoint 21902 | -6/Garrison | Garrison Relay disabled 22036 | -6/Garrison | Triggered checkpoint 22108 | -6/Garrison | Triggered checkpoint 22133 | -6/Garrison | Garrison Relay disabled 22216 | -6/Garrison | Entered Factory 22217 | -5/Factory | Identified exit to Upper Caves 22218 | -5/Factory | Reached level 21 22516 | -5/Factory | First assault squad dispatched 22846 | -5/Factory | Discovered new exit (range 16) 22997 | -5/Factory | Fabricated Nova Cannon? 23091 | -5/Factory | Discovered new exit (range 40) 23366 | -5/Factory | Reached level 22 23381 | -5/Factory | Upgraded with Utility slot (x1) 23464 | -5/Factory | Sage 6a assimilated hostile G-50 Soldier 23476 | -5/Factory | Found Prototype Device 23476 | -5/Factory | Identified Exp. Sensor Array 23506 | -5/Factory | Repaired Powered Armor 23537 | -5/Factory | Repaired Smartbomb Launcher 23779 | -5/Factory | Fabricated I-47 Archangel (x1) 23914 | -5/Factory | Fabricated S-27 Virus? 23995 | -5/Factory | Discovered new exit (range 12) 24091 | -5/Factory | Garrison activated, responded to threat 24188 | -5/Factory | Identified exit to Factory 24265 | -5/Factory | Entered Upper Caves 24327 | -5/Upper Caves | Learned location of Warlord (-5) 24336 | -5/Upper Caves | Acquired the password to a Derelict Tinkerer's latest research 24340 | -5/Upper Caves | Found Prototype Special Weapon 24340 | -5/Upper Caves | Identified Molecular Deconstructor 24370 | -5/Upper Caves | Caught by Unaware searching for contraband prototypes 24372 | -5/Upper Caves | Caught by Unaware searching for contraband prototypes 24660 | -5/Upper Caves | Spotted B-75 Beast 24721 | -5/Upper Caves | Destroyed B-75 Beast 24852 | -5/Upper Caves | Encountered a Warlord checkpoint 25077 | -5/Upper Caves | Discovered new exit (range 7) 25227 | -5/Upper Caves | Entered another Upper Caves area 25247 | -5/Upper Caves | Attracted the attention of an 0b10 outpost 25289 | -5/Upper Caves | Reached level 23 25322 | -5/Upper Caves | Destroyed 7 combat bots 25335 | -5/Upper Caves | Discovered exit to Factory (range 16) 25383 | -5/Upper Caves | Spotted B-75 Beast 25422 | -5/Upper Caves | Destroyed B-75 Beast 25554 | -5/Upper Caves | Learned Factory emergency access door positions 25595 | -5/Upper Caves | Learned location of 1 exit from Factory 25832 | -5/Upper Caves | Discovered new exit (range 10) 25967 | -5/Upper Caves | Entered Warlord 25990 | -5/Warlord | System corruption cleaned by Quarantine Array 25992 | -5/Warlord | RIF detected upon attempting to enter Warlord's base 25992 | -5/Warlord | Attacked by Warlord forces 26018 | -5/Warlord | Spotted ML-JHI(B) 26018 | -5/Warlord | Spotted 31-PAY(B) 26136 | -5/Warlord | Discovered new exit (range 15) 26158 | -5/Warlord | Destroyed 31-PAY(B) 26168 | -5/Warlord | Destroyed ML-JHI(B) 26274 | -5/Warlord | Spotted 8J-P91(H) 26309 | -5/Warlord | Destroyed 8J-P91(H) 26403 | -5/Warlord | Spotted JF-MLU(g) 26427 | -5/Warlord | Destroyed JF-MLU(g) 26509 | -5/Warlord | Spotted UM-IO0(g) 26524 | -5/Warlord | Destroyed UM-IO0(g) 26547 | -5/Warlord | Warlord's base attacked by MAIN.C 26615 | -5/Warlord | Entered Proximity Caves 26696 | -4/Proximity Caves | Reached level 24 26699 | -4/Proximity Caves | Upgraded with Power slot (x1) 26708 | -4/Proximity Caves | Core integrity fell below 50% 26844 | -4/Proximity Caves | Spotted B-86 Titan 26911 | -4/Proximity Caves | Destroyed B-86 Titan 27253 | -4/Proximity Caves | Attracted the attention of an 0b10 checkpoint 27326 | -4/Proximity Caves | Discovered exit to Factory (range 16) 27413 | -4/Proximity Caves | Learned location of Quarantine (-3) 27454 | -4/Proximity Caves | Entered Factory 27455 | -4/Factory | Identified exit to Extension 27459 | -4/Factory | Reached level 25 27459 | -4/Factory | Identified exit to Research 27459 | -4/Factory | Upgraded with Utility slot (x1) 27718 | -4/Factory | Repaired Hyp. Gauss Cannon 27763 | -4/Factory | Repaired Powered Armor 27978 | -4/Factory | Discovered new exit (range 14) 27985 | -4/Factory | Fabricated Lgt. Quantum Reactor (x2) 28399 | -4/Factory | Found Prototype Slashing Weapon 28399 | -4/Factory | Identified Centrium Greatsword 28985 | -4/Factory | Entered Extension 28986 | -4/Extension | Loaded intel: 15 trap records 28987 | -4/Extension | Reached level 26 29044 | -4/Extension | Rescued A7 29113 | -4/Extension | Rescued a captive Derelict 29113 | -4/Extension | Rescued a captive Derelict 29122 | -4/Extension | Rescued a captive Derelict 29229 | -4/Extension | Rescued a captive Derelict 29261 | -4/Extension | Rescued a captive Derelict 29262 | -4/Extension | Rescued a captive Derelict 29303 | -4/Extension | Spotted B-86 Titan 29485 | -4/Extension | First assault squad dispatched 29491 | -4/Extension | Spotted B-86 Titan 29506 | -4/Extension | Destroyed B-86 Titan 29518 | -4/Extension | Allies destroyed B-86 Titan 29577 | -4/Extension | Discovered exit to Research (range 5) 29630 | -4/Extension | Rescued a captive Derelict 29632 | -4/Extension | Rescued a captive Derelict 29635 | -4/Extension | Rescued a captive Derelict 29705 | -4/Extension | Rescued a captive Derelict 29708 | -4/Extension | Rescued a captive Derelict 29709 | -4/Extension | Rescued a captive Derelict 29770 | -4/Extension | Reached level 27 29779 | -4/Extension | Upgraded with Propulsion slot (x1) 29840 | -4/Extension | Rescued a captive Derelict 29840 | -4/Extension | Rescued a captive Derelict 29877 | -4/Extension | Discovered exit to Research (range 10) 29878 | -4/Extension | Discovered new exit (range 6) 30072 | -4/Extension | Extracted ID and sensor layout for unrecognized location from A7's data core 30199 | -4/Extension | Entered Cetus 30212 | -4/Cetus | Spotted Cetus Guard 30213 | -4/Cetus | Spotted Cetus Guard 30215 | -4/Cetus | Spotted Cetus Guard 30217 | -4/Cetus | Spotted Cetus Guard 30239 | -4/Cetus | Destroyed Cetus Guard 30243 | -4/Cetus | Destroyed Cetus Guard 30252 | -4/Cetus | Destroyed Cetus Guard 30255 | -4/Cetus | Destroyed Cetus Guard 30290 | -4/Cetus | Enhanced Grunt warped into view, answering call for help 30290 | -4/Cetus | Enhanced Grunt warped into view, answering call for help 30301 | -4/Cetus | Cetus Manufacturing Module disabled 30429 | -4/Cetus | Discovered new exit (range 16) 30442 | -4/Cetus | Spotted Cetus Guard 30442 | -4/Cetus | Spotted Cetus Guard 30483 | -4/Cetus | Spotted Cetus Guard 30487 | -4/Cetus | Spotted Cetus Guard 30493 | -4/Cetus | Destroyed Cetus Guard 30501 | -4/Cetus | Destroyed Cetus Guard 30511 | -4/Cetus | Destroyed Cetus Guard 30570 | -4/Cetus | Discovered exit to Research (range 16) 30580 | -4/Cetus | Met Revision 17 30594 | -4/Cetus | Entered Archives 30596 | -4/Archives | Reached level 28 30611 | -4/Archives | Discovered new exit (range 17) 30617 | -4/Archives | Discovered new exit (range 17) 30630 | -4/Archives | Discovered exit to Research (range 17) 31121 | -4/Archives | Build established: Generator-Mutant 31342 | -4/Archives | Unable to access archive contents 31640 | -4/Archives | Build established: Hacker-Mutant 31719 | -4/Archives | Entered Hub_04(d) 31821 | -4/Hub_04(d) | Network Hub disabled 31823 | -4/Hub_04(d) | Network Hub disabled 31827 | -4/Hub_04(d) | Found Prototype Processor 31827 | -4/Hub_04(d) | Identified Exp. Signal Interpreter 31832 | -4/Hub_04(d) | Spotted Lightning 32004 | -4/Hub_04(d) | Build established: Hacker-Tank 32111 | -4/Hub_04(d) | Discovered exit to Research (range 10) 32219 | -4/Hub_04(d) | First assault squad dispatched 32298 | -4/Hub_04(d) | Spotted Lightning 32298 | -4/Hub_04(d) | Spotted Lightning 32344 | -4/Hub_04(d) | Discovered exit to Research (range 8) 32363 | -4/Hub_04(d) | Discovered exit to Research (range 5) 32377 | -4/Hub_04(d) | Discovered exit to Research (range 16) 32538 | -4/Hub_04(d) | Spotted Lightning 32538 | -4/Hub_04(d) | Spotted Lightning 32538 | -4/Hub_04(d) | Spotted Lightning 32583 | -4/Hub_04(d) | Network Hub disabled 32583 | -4/Hub_04(d) | Network Hub disabled 32604 | -4/Hub_04(d) | Destroyed 8 combat bots 32606 | -4/Hub_04(d) | Entered Research 32607 | -3/Research | Identified exit to Armory 32608 | -3/Research | Reached level 29 32693 | -3/Research | Spotted B-86 Titan 32821 | -3/Research | Crushed by falling debris 32832 | -3/Research | Found Prototype Device 32832 | -3/Research | Identified Exp. Thermal Shield 32856 | -3/Research | First assault squad dispatched 33484 | -3/Research | Build established: Hacker-Gunner 33577 | -3/Research | Spotted B-86 Titan 33714 | -3/Research | Discovered new exit (range 16) 33720 | -3/Research | Identified exit to Research 33720 | -3/Research | Identified exit to Quarantine 33908 | -3/Research | P-80 Master assimilated allied Administrator 8a 33950 | -3/Research | Fabricated Quantum Reactor (x2) 34038 | -3/Research | Fabricated Q-thruster (x2) 34068 | -3/Research | Garrison activated, responded to threat 34095 | -3/Research | Entered Quarantine 34095 | -3/Quarantine | Accompanied by 2 allies 34096 | -3/Quarantine | Maximum security lockdown engaged 34110 | -3/Quarantine | Found Alien Artifact 34115 | -3/Quarantine | Identified Subatomic Replicator 34115 | -3/Quarantine | Used Subatomic Replicator to replicate Protomatter-47 34134 | -3/Quarantine | Found Prototype Processor 34134 | -3/Quarantine | Identified Spectral Analyzer 34141 | -3/Quarantine | Reached level 30 34164 | -3/Quarantine | Found Alien Artifact 34220 | -3/Quarantine | Found Alien Artifact 34221 | -3/Quarantine | Identified Stasis Generator 34227 | -3/Quarantine | Spotted Striker 34232 | -3/Quarantine | Spotted Striker 34254 | -3/Quarantine | Spotted Executioner 34264 | -3/Quarantine | Found Alien Impact Weapon 34264 | -3/Quarantine | Identified Core Stripper 34268 | -3/Quarantine | Destroyed Striker 34275 | -3/Quarantine | Destroyed Striker 34303 | -3/Quarantine | Discovered exit to Research (range 5) 34305 | -3/Quarantine | Spotted Investigator 34347 | -3/Quarantine | Core integrity fell below 50% 34418 | -3/Quarantine | Scanned by Researcher 34448 | -3/Quarantine | Core integrity fell below 20% 34448 | -3/Quarantine | Identified Core Reset Matrix 34448 | -3/Quarantine | Used Core Reset Matrix 34452 | -3/Quarantine | Detected hypermatrix surge 34452 | -3/Quarantine | Emitted hypermatrix ping 34452 | -3/Quarantine | Sensed 15 artifacts in vicinity 34457 | -3/Quarantine | Assembled emerged from beneath the floor 34462 | -3/Quarantine | Spotted Striker 34465 | -3/Quarantine | Destroyed by G-73 Enforcer with Phase Gun Last Messages --------------- 34461_ Slug penetrates B-74 Champion. 34461_ G-67 Veteran suffers critical hit. 34461_ G-67 Veteran destroyed. 34461_ as-23100 destroyed. 34462_ as-03312 destroyed. 34462_ Slug penetrates G-67 Veteran. 34463_ as-05174 knocked back. 34463_ Slug penetrates as-05174. 34463_ Slug penetrates Investigator. 34463_ Investigator destroyed. 34464_ Stasis bubble strength at 141. 34464_ Slug penetrates as-35647. 34464_ as-35647 suffers critical hit. 34464_ as-35647 destroyed. 34464_ Slug penetrates G-67 Veteran. 34464_ G-67 Veteran destroyed. 34464_ Slug penetrates G-73 Enforcer. 34464_ E-15 Imp destroyed. 34465_ Used Protomatter to restore core integrity (+231, depleted) 34465_ Penetrated by Slug. Map ----- +----------------------------------------------------+ | | | | | ?????????????????????????????????????????????????? | | ?????????????????????????????????????????????????? | | ?????????????????????????????????????????????????? | | ?????????????????????????????????????????????????? | | ?????????????????????????????????????????????????? | | ?????????????????????????????????????????????????? | | ?????????????????????????????????????????????????? | | ?????????????????????????????????????????????????? | | ????????????????????????????? ???????????????????? | | ???????????????????????? ???? ??????????????????? | | ???????????????????????# ??? ??????????????????? | | ???????????????????????? ??? ??????#????????????? | | ???????????????????????? ?? ????? ;????????????? | | ???????????????????????? " ???? #????????????? | | ???????????????????????? "" ???? ?????????????? | | ???????????????????????? "" ??? ??????????????? | | ???????????????????????? "" ?? ???????????????? | | ???????????????????????? " ?? ????????????????? | | ???????????????????????? ? ?????????????????? | | ??????g???????????#######=;##;#??????????????????? | | ??????gg?????????g?/b%m!g% a #???????????????????? | | ????????????????????#gg=gbpG #???????????????????? | | ???????????????# b#!gggl=* # #??????????????? | | ???????????????#gY g/ggbh@"" + #??????????????? | | ???????????????# g Y#g=%l=g"%# #??????????????? | | ???????????????????h# gKbph" #???????????????????? | | ???????????????????h#miaE"" =#???????????????????? | | ??????????????????gYY m!*p!=; ??????????????????? | | ?????????????????? h# l ! # ?????????????????? | | ???????????????? Y?#######;## ????????????????? | | ???????????????# ?????????;#?? ???????????????? | | ???????????????# ?????????? ??? #??????????????? | | ???????????????#??????????? ???? #??????????????? | | ???????????????????Y???????? #????#??????????????? | | ???????!!???!!????????????!? #???????????????????? | | ???????!?????!?????????????? #???????????????????? | | ?????????!?????????????????? #???????????????????? | | ???????????????????g?????????????????????????????? | | ????????????????Y????????????????????????????????? | | ????????????????gi???????????????????????????????? | | ?????????????????g???????????????????????????????? | | ????????????????????????g????????????????????????? | | ??????????????????????g??????????????????????????? | | ?????????????????????????????????????????????????? | | ?????????????????????????????????????????????????? | | ?????????????????????????????????????????????????? | | ?????????????????????????????????????????????????? | | ?????????????????????????????????????????????????? | +----------------------------------------------------+ Best States ------------- Heat Dissipation 112 Energy Generation 75 Energy Capacity 1475 Matter Stores 300 Matter Capacity 300 Sight Range 24 Robot Scan Range 30 Terrain Scan Range 18 Terrain Scan Density 110 Additional Mass Support 20 Armor Coverage 1200 Resistance: KI 30 Resistance: TH 15 Resistance: EX 15 Resistance: EM 15 Resistance: I 15 Resistance: S 15 Resistance: P 15 Propulsion Shielding 66 Utility Shielding 66 Weapon Shielding 100 Weapon Cycling 25 Melee Speed Boost 30 Phase Shifting 8 Evasion (%) 82 Targeting Accuracy 8 Melee Accuracy 8 Target Analysis 8 Core Analysis 8 Armor Integrity Analysis 90 Recoil Reduction 2 Offensive Hacking 34 Defensive Hacking 19 Item Schematics ----------------- None Robot Schematics ------------------ None Fabricated ------------ System Backup Module | x2 | -7/Factory Imp. Hacking Suite | x1 | -7/Factory Y-54 Guardian | x2 | -7/Factory | Preloaded Lance | x2 | -6/Factory Nova Cannon | x1 | -5/Factory | Preloaded I-47 Archangel | x1 | -5/Factory | Preloaded S-27 Virus | x4 | -5/Factory Lgt. Quantum Reactor | x2 | -4/Factory | Preloaded Quantum Reactor | x2 | -3/Research | Preloaded Q-thruster | x2 | -3/Research Alien Tech Used ----------------- Subatomic Replicator Stasis Generator Core Stripper Core Reset Matrix Achievements -------------- 404 Alien Roots Equal Opportunity Bot Help From High Places Melee Specialist Challenges ------------ None RPGLIKE | -11 -10 -10 -10 -9 -8 -8 -8 -8 -7 -7 -7 -7 -7 -6 -6 -6 -5 -5 -5 -5 -4 -4 -4 -4 -4 -4 -3 -3 --------- Run | Scr Mat Min Exi Min Mat Gar Mat Gar Fac Low Low Zio Dee Pro Fac Gar Fac Upp Upp War Pro Fac Ext Cet Arc Hub Res Qua Levels Raised 29 | . . 1 . 1 4 3 1 2 3 . 1 . 1 1 . 1 2 . 1 . 1 1 2 . 1 . 1 1 XP Earned 47042 | 3000 985 1075 350 1351 6045 4550 1818 1910 4479 1069 909 118 1357 1282 971 927 3126 352 794 212 1557 2170 2689 380 115 754 1519 1178 XP Spent 43730 | 2300 250 1950 . 1485 5885 4000 2110 1500 5995 . 300 . 2605 . . 2700 3400 . 475 . 800 3200 2850 . 1420 105 400 . Upgrades 68 | 4 1 3 . 5 13 4 2 2 9 . 1 . 7 . . 2 2 . 2 . 1 1 3 . 3 1 2 . Power Slot 2 | . . . . . 1 . . . . . . . . . . . . . . . 1 . . . . . . . Propulsion Slot 5 | 2 . 1 . . . . . . 1 . . . . . . . . . . . . . 1 . . . . . Utility Slot 10 | 1 . 1 . . 2 1 1 . 1 . . . . . . 1 1 . . . . 1 . . . . . . Weapon Slot 4 | 1 . . . 1 1 1 . . . . . . . . . . . . . . . . . . . . . . Core Integrity 9 | . . . . 1 3 . . . 1 . . . 3 . . . . . . . . . . . . 1 . . Heat Dissipation 9 | . . 1 . 2 . . 1 . 1 . . . . . . . . . . . . . . . 2 . 2 . Energy Generation 2 | . . . . . . . . . . . 1 . . . . . . . . . . . 1 . . . . . Energy Storage 3 | . . . . . . . . . . . . . 1 . . . . . 2 . . . . . . . . . Mass Support 3 | . . . . . . . . . . . . . . . . 1 . . . . . . 1 . 1 . . . Inventory Capacity 5 | . 1 . . 1 . 1 . 1 . . . . 1 . . . . . . . . . . . . . . . Sight Range 1 | . . . . . . . . . 1 . . . . . . . . . . . . . . . . . . . Ranged Accuracy 2 | . . . . . 1 . . . . . . . . . . . 1 . . . . . . . . . . . Melee Accuracy 4 | . . . . . 3 . . 1 . . . . . . . . . . . . . . . . . . . . Hack Attack % 4 | . . . . . . . . . 4 . . . . . . . . . . . . . . . . . . . Hack Defense % 1 | . . . . . 1 . . . . . . . . . . . . . . . . . . . . . . . KI Resistance % 1 | . . . . . . 1 . . . . . . . . . . . . . . . . . . . . . . TH Resistance % 3 | . . . . . 1 . . . . . . . 2 . . . . . . . . . . . . . . . Protomatter Created 7982 | . 153 88 . 34 387 420 85 205 479 197 140 259 2143 235 . 163 312 44 277 453 83 238 407 163 162 172 520 163 Integrity Restored 18597 | . 263 257 . 156 934 921 235 446 1366 397 395 1122 2128 411 . 1263 897 222 637 1159 522 832 1551 612 238 . 1161 472 Core 13797 | . 137 226 . 117 603 605 225 272 864 225 251 1068 1628 266 . 984 729 174 605 676 522 733 1070 319 121 . 924 453 Parts 4800 | . 126 31 . 39 331 316 10 174 502 172 144 54 500 145 . 279 168 48 32 483 . 99 481 293 117 . 237 19 Protomatter Decayed 4218 | . 13 . . 93 59 152 6 47 142 221 124 . 1351 14 . . 303 55 226 135 . 182 609 144 4 46 51 241 Game ------ Seed ArmageddonStructuralDevice Manual? 1 Play Time 12:30:45 Cumulative 109.0 hours Start 2020.04.01 @ 17:09:57 End 2020.04.03 @ 01:31:36 Sessions 6 Manual Loads 0 Difficulty Rogue Special Mode Winter2019/RPGLIKE Game No. 28 Rogue 28 Adventurer 0 Explorer 0 Win Type - Total 1 Types 1/0/0/0/0/0/0 Lore% 48 Gallery% 61 Achievement% 58 Wizard Run 0 Options --------- ASCII 1 Keyboard 1 Movement Numpad Keybinds 0 Fullscreen 1 Font 16/SmallcapsGlow Map View 75x55 Tactical HUD 1 Map Filters NONE Filters NONE Steam 1 RUN: 99c6a7c0-f278-4c19-8921-985ac0b119fa